Cogmind - Beta 9.2 @@@ ROGUE MODE // 2019.11.15 @ 01:22:53 Player: cptwinky Result: Escaped! Performance ------------- Evolutions (9) 4500 Regions Visited (35) 7000 Robots Destroyed (650) 3250 Value Destroyed (32292) 32292 Prototype IDs (61) 1220 Alien Tech Used (4) 800 Bonus (27479) 27479 TOTAL SCORE: 76541 Bonus ------- Triggered High Security 1000 High Alert Combat Kills 12584 Follower Combat Kills 1349 Network Hubs Disabled 1000 Met Data Miner 300 Met Zhirov 300 Met Warlord at Base 500 MAIN.C Attacked Warlord 500 Met R17 at Cetus 500 Found Hidden Lab 3000 Met R17 at Research 2000 Met Warlord at Research 2000 Scanned by Researcher 500 Win 3000 Friendly Fire -1054 Cogmind --------- Core Integrity 590/1600 Matter 300/300 Energy 99/100 System Corruption 35% Temperature Cool (280) Movement Core (50) Location To Epsilon Eridani Parts ------- > --- POWER (3) -------- (None) > --- PROPULSION (6) --- (None) > --- UTILITY (14) ----- (None) > --- WEAPON (3) ------- (None) > --- INVENTORY (4) ---- Transdimensional Reconstructor Core Reset Matrix Guided Remote Datajack Molecular Scythe Peak State ------------ > --- POWER ------------ Reinforced Antimatter Reactor Vortex Chain Reactor > --- PROPULSION ------- Armored Heavy Treads Armored Heavy Treads Centrium Heavy Treads > --- UTILITY ---------- Experimental Heat Sink Large Storage Unit High-capacity Storage Unit High-capacity Storage Unit High-capacity Storage Unit Advanced Visual Processing Unit Experimental Sensor Array Experimental Signal Interpreter Advanced Target Analyzer Advanced Core Analyzer Advanced Armor Integrity Analyzer Advanced Phase Shifter Advanced Thermal Shield Advanced Shield Generator > --- WEAPON ----------- High-powered Disruptor Cannon Heavy Gauss Cannon > --- INVENTORY -------- Light Particle Reactor Light Quantum Reactor Light Quantum Reactor Armored Heavy Treads Armored Heavy Treads Armored Heavy Treads Armored Heavy Treads Advanced Heat Sink High-capacity Matter Pod Advanced Transmission Jammer Transdimensional Reconstructor Core Reset Matrix EMDS Vortex Driver Vortex Driver Enhanced Nova Cannon Enhanced Nova Cannon Potential Cannon KE Penetrator Guided Remote Datajack Molecular Scythe [Rating: 203] Favorites ----------- Power Micro Fission Core Engine Improved Deuterium Engine Power Core Micro Fission Core Reactor Antimatter Reactor Propulsion Centrium Heavy Treads Treads Centrium Heavy Treads Leg Myomer Leg Wheel Compact Wheel Utility High-capacity Storage Unit Device Advanced Heat Sink Storage High-capacity Storage Unit Processor Advanced Signal Interpreter Hackware Improved Hacking Suite Protection Improved Light Armor Plating Weapon Hypervelocity Mass Driver Energy Gun Lightning Gun Energy Cannon HERF Cannon Ballistic Gun Improved Assault Rifle Ballistic Cannon Hypervelocity Mass Driver Launcher Proton Missile Launcher Special Weapon Guided Remote Datajack Slashing Weapon Molecular Scythe Build | -11 -10 -10 -9 -9 -9 -8 -8 -7 -7 -7 -7 -7 -7 -6 -6 -6 -6 -6 -6 -5 -5 -5 -5 -4 -4 -4 -4 -4 -3 -3 -3 -3 -2 -2 -1 ------- Run | Scr Mat Min Mat Min Exi Min Mat Fac Was Fac Low Low Dat Pro Fac Ext Cet Arc Hub Fac Upp Upp War Pro Fac Upp Upp Zhi Pro Res Arm Lab Res Tes Acc Slots Evolved 18 | . . . 2 . . . 2 2 . . . . . . 2 . . . . 2 . . . . 2 . . . . 2 . . 2 . 2 Power 1 | . . . . . . . . . . . . . . . . . . . . 1 . . . . . . . . . . . . . . . Propulsion 4 | . . . . . . . 1 . . . . . . . 1 . . . . . . . . . 1 . . . . . . . 1 . . Utility 12 | . . . 2 . . . 1 2 . . . . . . 1 . . . . 1 . . . . 1 . . . . 1 . . 1 . 2 Weapon 1 | . . . . . . . . . . . . . . . . . . . . . . . . . . . . . . 1 . . . . . Parts Attached 679 | 5 4 4 17 9 1 1 25 40 14 21 21 4 1 10 35 17 17 . 10 70 12 6 10 6 37 8 14 2 6 52 6 9 27 53 105 Power 52 | 1 . . 3 1 . . 3 2 3 2 1 . . . 2 1 1 . 1 9 . . 1 . 2 1 . 1 1 3 . 1 1 2 9 Engine 14 | 1 . . 2 1 . . 1 2 2 1 . . . . 1 1 . . . 2 . . . . . . . . . . . . . . . Core 13 | . . . 1 . . . 2 . . . 1 . . . . . . . . 3 . . 1 . 2 1 . 1 1 . . . . . . Reactor 25 | . . . . . . . . . 1 1 . . . . 1 . 1 . 1 4 . . . . . . . . . 3 . 1 1 2 9 Propulsion 93 | 1 1 . 2 5 . . 8 5 2 2 3 . . 3 6 5 2 . 2 9 . . . . 5 2 3 . . 6 2 . 5 3 11 Treads 82 | . 1 . 2 3 . . 5 3 1 2 3 . . 3 6 5 2 . 2 9 . . . . 5 1 3 . . 5 2 . 5 3 11 Leg 1 | . . . . . . . . . . . . . . . . . . . . . . . . . . 1 . . . . . . . . . Wheel 10 | 1 . . . 2 . . 3 2 1 . . . . . . . . . . . . . . . . . . . . 1 . . . . . Hover . | . . . . . . . . . . . . . . . . . . . . . . . . . . . . . . . . . . . . Flight . | . . . . . . . . . . . . . . . . . . . . . . . . . . . . . . . . . . . . Utility 274 | 1 . . 7 1 1 . 9 21 6 9 7 3 . 4 15 7 3 . 5 27 4 1 6 1 15 2 8 1 5 26 4 3 10 24 38 Device 132 | . . . . . . . 3 8 1 . 1 . . 3 2 4 . . . 14 2 1 3 1 8 . 4 1 4 15 3 1 7 18 28 Storage 30 | 1 . . 3 1 1 . 2 1 . 2 1 . . . 1 1 . . . 2 1 . 1 . 1 . 3 . . 3 . . . 1 4 Processor 20 | . . . . . . . . 3 . . . . . . 1 1 . . . 2 1 . 1 . 2 . . . . 4 1 . . 1 3 Hackware 9 | . . . . . . . . 1 . . . . . . 1 . . . . 3 . . 1 . . . 1 . . . . 1 . 1 . Protection 83 | . . . 4 . . . 4 8 5 7 5 3 . 1 10 1 3 . 5 6 . . . . 4 2 . . 1 4 . 1 3 3 3 Artifact . | . . . . . . . . . . . . . . . . . . . . . . . . . . . . . . . . . . . . Weapon 260 | 2 3 4 5 2 . 1 5 12 3 8 10 1 1 3 12 4 11 . 2 25 8 5 3 5 15 3 3 . . 17 . 5 11 24 47 Energy Gun 24 | 1 2 2 . . . . . 1 . . 2 . 1 . 1 1 . . . 1 . 2 . . 3 . . . . . . 1 . 2 4 Energy Cannon 70 | . . . . . . . 2 3 . 5 3 . . . 1 . . . . 5 . 3 1 3 1 1 . . . 2 . 1 2 12 25 Ballistic Gun 48 | 1 . . 2 1 . 1 1 5 3 1 1 . . 2 3 2 6 . 2 5 1 . . . 2 1 2 . . 2 . . . 1 3 Ballistic Cannon 43 | . . . . . . . 1 . . . . . . . 2 1 2 . . 7 2 . . . 3 1 1 . . 9 . 1 4 2 7 Launcher 38 | . 1 2 3 1 . . 1 2 . 1 4 . . 1 2 . 3 . . 4 2 . . 1 3 . . . . . . . 2 2 3 Special Weapon 6 | . . . . . . . . 1 . . . . . . . . . . . . . . 1 . . . . . . . . 1 . 1 2 Impact Weapon . | . . . . . . . . . . . . . . . . . . . . . . . . . . . . . . . . . . . . Slashing Weapon 31 | . . . . . . . . . . 1 . 1 . . 3 . . . . 3 3 . 1 1 3 . . . . 4 . 1 3 4 3 Piercing Weapon . | . . . . . . . . . . . . . . . . . . . . . . . . . . . . . . . . . . . . Special Melee Weapon . | . . . . . . . . . . . . . . . . . . . . . . . . . . . . . . . . . . . . Unidentified Prototypes 26 | . . . . . . . . . . . . . . 1 1 1 3 . . 1 . . 4 1 1 . . 2 . . 1 6 3 . 1 Parts Lost 153 | . . . . 1 . 1 4 3 3 . 7 1 . 2 13 1 . . 10 21 1 1 2 . 3 2 10 . 1 1 . . 1 4 60 Power 13 | . . . . . . . . . 1 . . . . . 1 . . . 1 2 . . . . . . . . . . . . . . 8 Propulsion 31 | . . . . 1 . . 1 3 . . 1 . . . 3 . . . 2 4 . . . . . 1 3 . . . . . . . 12 Utility 62 | . . . . . . . 2 . . . 4 1 . . 7 1 . . 4 7 . 1 1 . 1 . 6 . 1 1 . . 1 2 22 Weapon 47 | . . . . . . 1 1 . 2 . 2 . . 2 2 . . . 3 8 1 . 1 . 2 1 1 . . . . . . 2 18 Highest Loss Streak 30 | . . . . 1 . 1 3 1 3 . 3 1 . 2 4 1 . . 5 4 1 1 2 . 1 2 8 . 1 1 . . 1 1 30 Average Slot Usage (%) 87 | . 85 85 98 100 95 87 84 89 74 85 93 100 92 99 89 84 81 86 80 86 88 87 87 87 88 88 84 88 88 86 83 84 85 86 81 Engine 2 | . 14 14 9 5 11 11 4 7 6 5 . . . . 3 1 . . . . . . . . . . . . . . . . . . . Core 3 | . . . 1 5 . . 4 . . . 1 7 7 7 1 . . . . 4 5 5 5 5 8 10 10 10 10 4 . . . . . Reactor 3 | . . . . . . . . . . 1 5 . . . . 4 5 6 5 3 5 5 5 5 1 . . . . 3 9 10 12 12 9 Treads 13 | . 14 14 17 18 11 11 17 7 11 15 17 23 23 22 18 18 13 13 13 11 11 11 11 11 14 10 13 15 15 13 14 13 13 12 11 Wheel 2 | . 14 14 4 3 11 11 9 14 3 . . . . . . . . . . . . . . . . . . . . . . . . . . Device 7 | . . . . . . . 4 6 2 7 5 7 7 7 9 8 6 6 5 7 14 10 7 5 4 3 4 8 10 8 12 10 12 19 16 Storage 19 | . 14 14 30 33 28 22 18 15 15 17 23 23 23 23 20 20 20 20 20 16 17 17 20 23 21 21 26 27 23 19 19 18 16 16 15 Processor 7 | . . . . . . . . 7 7 7 7 7 7 7 6 6 6 6 6 8 7 11 11 11 11 5 5 5 5 11 9 9 8 8 15 Hackware 4 | . . . . . . . . 1 1 . . . . . 2 . . . . 12 11 11 11 11 10 10 10 10 10 5 . 2 4 1 . Protection 6 | . . . 11 11 11 11 9 10 7 14 15 15 15 14 12 10 13 20 14 3 . . . . 4 11 2 . 2 2 4 4 5 3 1 Energy Gun 1 | . 13 14 . . . . . . . . 2 7 . 5 1 1 . . . . . 2 . . 1 . . . . . . . . . . Energy Cannon 1 | . . . . . . . 6 2 . 4 3 . . . 2 . . . . 2 . 1 6 7 1 3 . . . 1 . . . 3 2 Ballistic Gun 4 | . 14 14 15 13 11 10 5 8 15 9 5 . . 2 5 4 4 13 12 4 1 . . . 3 5 5 5 5 . . . . . . Ballistic Cannon 2 | . . . . . . . 2 . . . . . . . 1 2 4 . . 1 1 . . . 2 1 4 5 5 9 9 8 8 6 3 Launcher 1 | . 1 . 5 8 11 11 2 1 . . 2 6 . 5 . . 3 . . . 1 5 . 2 . . . . . . . . . . . Slashing Weapon 1 | . . . . . . . . . . . . . 7 . 1 3 . . . 1 6 . 3 . 1 . . . . 1 4 3 3 . . Naked Turns . | . . . . . . . . . . . . . . . . . . . . . . . . . . . . . . . . . . . . Heaviest Build 246 | 11 12 11 64 85 117 118 130 137 159 122 116 107 103 114 123 128 139 136 159 132 119 118 134 140 138 139 135 132 142 222 215 223 221 246 242 Greatest Support 240 | 16 16 16 40 40 16 16 63 40 90 90 90 83 83 90 140 140 160 160 160 160 160 160 160 160 188 178 177 177 177 177 167 167 240 240 235 Greatest Overweight (x) 10 | . . . 3 5 7 7 7 10 9 1 1 1 1 1 1 1 . . . 1 . . . . 1 . . . . 1 1 1 1 1 1 Average Overweight (x) 1 | . . . 1 2 5 7 3 4 3 . 1 1 1 1 . . . . . . . . . . . . . . . . 1 1 . . . Largest Inventory Capacity 50 | 6 6 6 22 24 30 30 50 50 30 30 26 26 26 26 26 26 26 26 26 26 26 26 32 32 32 32 32 32 32 34 34 34 34 34 34 Average Capacity 28 | 5 6 6 20 22 25 30 30 30 30 28 26 26 26 26 26 26 26 26 26 25 26 26 29 32 32 32 32 32 32 32 34 34 34 34 34 Most Carried 34 | 6 6 6 22 22 28 28 30 30 30 30 26 26 26 26 26 26 26 26 26 26 26 26 32 32 32 32 32 32 32 34 34 34 34 34 34 Average Carried 26 | 3 5 5 16 21 21 27 29 29 29 28 25 25 26 25 23 25 25 25 24 18 25 25 29 31 31 31 28 31 31 31 33 33 33 33 28 Final Capacity 34 | 6 6 6 22 24 30 30 30 30 30 26 26 26 26 26 26 26 26 26 26 26 26 26 32 32 32 32 32 32 32 34 34 34 34 34 4 Final Carried 34 | 6 6 6 21 22 28 27 27 30 30 26 25 26 26 26 24 26 26 26 17 26 25 26 32 32 32 32 32 32 32 34 33 34 34 34 4 Class Distribution -------------------- 28% | Hauler-Mutant 27% | Scavenger-Mutant 16% | Hacker-Mutant 4% | Hauler-Assassin 3% | Generator-Mutant 3% | Generator-Assassin 3% | Mutant Dominant Class ---------------- Mutant | -10/Materials Mutant | -10/Mines Hauler-Mutant | -9/Materials Hauler-Mutant | -9/Mines Hauler-Mutant | -9/Exiles Hauler-Mutant | -8/Mines Hauler-Mutant | -8/Materials Hauler-Mutant | -7/Factory Hauler-Mutant | -7/Waste Hauler-Mutant | -7/Factory Hauler-Mutant | -7/Lower Caves Scavenger-Mutant | -7/Lower Caves Scavenger-Mutant | -7/Data Miner Scavenger-Mutant | -6/Proximity Caves Scavenger-Mutant | -6/Factory Hauler-Mutant | -6/Extension Commander-Mutant | -6/Cetus Scavenger-Mutant | -6/Archives Scavenger-Mutant | -6/Hub_04(d) Scavenger-Mutant | -5/Factory Scavenger-Mutant | -5/Upper Caves Scavenger-Mutant | -5/Upper Caves Hacker-Mutant | -5/Warlord Hacker-Mutant | -4/Proximity Caves Hacker-Mutant | -4/Factory Hacker-Mutant | -4/Upper Caves Hacker-Mutant | -4/Upper Caves Hacker-Mutant | -4/Zhirov Hacker-Mutant | -3/Proximity Caves Hauler-Assassin | -3/Research Hauler-Assassin | -3/Armory Generator-Assassin | -3/Lab Generator-Assassin | -2/Research Generator-Mutant | -2/Testing Hauler-Mutant | -1/Access Resources | -11 -10 -10 -9 -9 -9 -8 -8 -7 -7 -7 -7 -7 -7 -6 -6 -6 -6 -6 -6 -5 -5 -5 -5 -4 -4 -4 -4 -4 -3 -3 -3 -3 -2 -2 -1 ----------- Run | Scr Mat Min Mat Min Exi Min Mat Fac Was Fac Low Low Dat Pro Fac Ext Cet Arc Hub Fac Upp Upp War Pro Fac Upp Upp Zhi Pro Res Arm Lab Res Tes Acc Matter Collected 18659 | 259 40 65 563 169 30 53 435 869 504 494 429 125 . 251 651 648 346 340 787 1503 360 111 170 83 827 345 347 162 203 1260 31 187 1016 2291 2705 Remotely 1070 | . . . . . . . . . . . . . . . . . . . . . . . . . . . . . . 578 . . . . 492 Salvage Created 36151 | 94 122 97 1357 409 . 125 1643 1286 1445 523 912 145 . 406 1555 1103 454 406 1181 3786 636 461 . 288 1136 294 313 286 163 1852 106 . 1784 3513 8270 Parts 1548 | 1 2 8 85 20 . 10 83 61 19 30 53 6 . 22 68 51 27 21 79 175 22 20 . 13 65 11 13 8 10 63 7 . 76 159 260 Haulers Intercepted 15 | . 1 . 2 . . . . 1 . . . . . . 1 3 . . . 1 . . . . 1 . . . . . . . 1 1 3 Recyclers Shooed 12 | . . . . . . . . . . 2 . . . . . . . . . 3 . . . . 1 . . . . . . . . . 6 Parts Field Recycled . | . . . . . . . . . . . . . . . . . . . . . . . . . . . . . . . . . . . . Retrieved Matter . | . . . . . . . . . . . . . . . . . . . . . . . . . . . . . . . . . . . . Parts Self-Destructed 177 | . . . . . . . . . . . 12 . . 21 . . . . . . 5 5 83 3 . 8 25 7 8 . . . . . . Prevented 104 | . . . . . . . . . . . 30 5 . 13 . . . . . . 16 14 11 6 . 7 . . 2 . . . . . . Kills | -11 -10 -10 -9 -9 -9 -8 -8 -7 -7 -7 -7 -7 -7 -6 -6 -6 -6 -6 -6 -5 -5 -5 -5 -4 -4 -4 -4 -4 -3 -3 -3 -3 -2 -2 -1 ------- Run | Scr Mat Min Mat Min Exi Min Mat Fac Was Fac Low Low Dat Pro Fac Ext Cet Arc Hub Fac Upp Upp War Pro Fac Upp Upp Zhi Pro Res Arm Lab Res Tes Acc Combat Hostiles Destroyed 534 | . 2 6 23 11 . 5 29 23 5 10 16 2 . 11 27 9 7 2 13 59 9 11 . 6 23 3 8 . 4 32 1 . 22 47 108 Melee 4 | . . . . . . . . . . . . . . . . . . . . 3 . . . . . . . . . . . . . 1 . Guns 103 | . . . 6 3 . . 4 4 5 5 2 2 . 5 7 6 . 2 13 11 2 . . . 12 . 3 . 2 4 . . . 2 3 Cannons 188 | . . . . . . . 7 2 . 1 1 . . . 12 3 1 . . 21 . . . . 4 1 5 . 2 27 1 . 8 35 57 AOE 161 | . 2 6 17 8 . 5 10 11 . 2 11 . . 5 6 . 3 . . 12 4 8 . 5 5 . . . . . . . 6 3 32 Classes Destroyed 26 | 1 2 1 5 1 . 1 1 2 1 1 1 . . . . . . . 1 1 . . . . . . 1 . . 3 . . . 1 2 Worker 23 | . . . 2 . . . 2 1 . . . . . . 2 . . . 2 10 . . . . . . . . . . . . . 1 3 Builder 19 | . . . . . . . 3 . . 1 . . . . 1 1 . . . 3 . . . . 1 . . . . . . . . 3 6 Tunneler 4 | . . . 1 . . . . 1 . . . . . . . . . . 1 . . . . . . . . . . . . . . . 1 Hauler 15 | . 1 . 2 . . . . 1 . . . . . . 1 3 . . . 1 . . . . 1 . . . . . . . 1 1 3 Recycler 17 | 1 . . 1 . . . 3 . . . . . . . 1 1 . . 1 1 . . . . . . . . . . . . . . 8 Carrier 3 | . . . . . . . . . . . . . . . . . . . . . . . . . . . . . . . . . . . 3 Minesweeper 1 | . . . . . . . . . . . . . . . . . . . . . . . . . . . 1 . . . . . . . . Mechanic 2 | . . . . . . . . . . 1 . . . . . . . . . . . . . . . . . . . . . . . . 1 Operator 10 | . . . 2 . . . . 1 . . . . . . . 1 . 4 . . . . . . . . . . . . . . 1 1 . Watcher 15 | . . . 4 . . . 1 2 . . . . . . . 1 1 . 1 1 . . . . 2 . . . . . 1 . . 1 . Swarmer 119 | . . 6 6 3 . 4 4 7 . 3 5 . . 8 8 1 3 . . 7 . 8 . 4 13 . 6 . 3 4 . . 5 5 6 Saboteur 6 | . . . . . . . . . . . . . . . . . . . . 1 . . . . . . . . . . . . . 2 3 Grunt 200 | . 2 . 14 7 . . 19 5 . . 7 . . 2 11 1 . . 2 30 9 3 . 2 2 . 2 . . 11 1 . 3 17 50 Brawler 16 | . . . . 1 . . . 1 . . . . . . . . . . . 2 . . . . . . . . . . . . 1 2 9 Duelist 19 | . . . . . . . . 1 . . 3 1 . . . . . . . 4 . . . . . . . . . . . . . 3 7 Protector 6 | . . . . . . . . . . . . . . . . . . . 2 1 . . . . . . . . . . . . . . 3 Sentry 38 | . . . 3 . . . 5 4 . . 1 1 . 1 4 5 . 2 3 2 . . . . . . . . . 1 . . 1 . 5 Demolisher 3 | . . . . . . . . . . . . . . . . . . . . . . . . . . . . . . 1 . . 2 . . Specialist 2 | . . . . . . . . . . . . . . . . . . . . . . . . . . . . . . . . . . 2 . Hunter 47 | . . . . . . 1 1 2 . 4 . . . . 1 . . . 3 4 . . . . 2 2 . . . 7 . . 4 7 9 Programmer 52 | . . . . . . . . 3 . 3 . . . . 3 . . . 1 8 . . . . 6 1 . . 1 . . . . 9 17 Behemoth 3 | . . . . . . . . . . . 1 . . . . 2 . . . . . . . . . . . . . . . . . . . Compactor 5 | . . . . . . . . . 5 . . . . . . . . . . . . . . . . . . . . . . . . . . Cetus Guard 4 | . . . . . . . . . . . . . . . . . 4 . . . . . . . . . . . . . . . . . . Lightning 2 | . . . . . . . . . . . . . . . . . . . 2 . . . . . . . . . . . . . . . . Investigator 1 | . . . . . . . . . . . . . . . . . . . . . . . . . . . . . . . . . . . 1 Striker 9 | . . . . . . . . . . . . . . . . . . . . . . . . . . . . . . 5 . . 4 . . Executioner 5 | . . . . . . . . . . . . . . . . . . . . . . . . . . . . . . 3 . . 2 . . Thug 3 | . . 1 1 . . . . . . . . . . . . . . 1 . . . . . . . . . . . . . . . . . Guerrilla 1 | . . . . . . . . . . . . . . . . . 1 . . . . . . . . . . . . . . . . . . Best Kill Streak 23 | 1 2 3 7 3 . 4 11 7 2 3 6 2 . 8 8 5 3 3 6 10 6 8 . 4 7 2 4 . 3 15 1 . 10 13 23 Combat Bots Only 18 | . 2 3 5 3 . 4 10 5 2 3 6 2 . 8 8 4 3 1 5 7 6 8 . 4 5 2 4 . 3 15 1 . 9 10 18 Max Kills in Single Turn 5 | 1 2 2 3 3 . 2 4 2 1 1 2 1 . 1 2 2 3 1 3 3 2 3 . 3 2 1 1 . 1 2 1 . 4 2 5 Gunslinging 1 | . . . . . . . . . . . . . . . . . . . 1 . . . . . 1 . . . . . . . . . . Exploded 4 | . 2 2 3 3 . 2 4 2 . 1 2 . . 1 2 . 3 . . 3 2 3 . 3 2 . . . . . . . 4 2 3 Melee 1 | . . . . . . . . . . . . . . . . . . . . 1 . . . . . . . . . . . . . 1 . Uniques/NPCs Destroyed . | . . . . . . . . . . . . . . . . . . . . . . . . . . . . . . . . . . . . Combat | -11 -10 -10 -9 -9 -9 -8 -8 -7 -7 -7 -7 -7 -7 -6 -6 -6 -6 -6 -6 -5 -5 -5 -5 -4 -4 -4 -4 -4 -3 -3 -3 -3 -2 -2 -1 -------- Run | Scr Mat Min Mat Min Exi Min Mat Fac Was Fac Low Low Dat Pro Fac Ext Cet Arc Hub Fac Upp Upp War Pro Fac Upp Upp Zhi Pro Res Arm Lab Res Tes Acc Damage Taken 57095 | . . 98 669 206 . 180 1468 1916 495 1143 2243 183 . 606 3685 837 443 280 4878 6031 228 112 454 194 2279 747 2237 . 661 1715 277 . 2444 3029 17357 Core 3748 | . . 20 106 20 . 26 216 146 6 67 275 14 . 42 284 15 . . 266 437 58 14 12 18 115 14 135 . 37 43 10 . 224 118 1010 Absorbed by Shields 5136 | . . . . . . . . . . . . . . . . 138 . . . . . . . . . . . . 241 98 73 . . 2420 2166 Reduced by Siege Mode 2342 | . . . . . . . . . . 7 128 . . . 133 13 . 13 77 318 10 . . . 176 49 213 . 23 136 . . 161 256 629 Core Remaining (%) 62 | 100 . 92 . . . 62 60 . . . . . . 21 . . . . 33 . . . . 46 . . . . 73 . . 87 . 76 36 Volleys Fired 1557 | 3 6 15 68 21 . 9 82 101 43 42 43 10 . 22 88 59 22 37 52 155 13 11 12 7 57 16 31 33 17 58 3 . 34 152 235 Largest 3 | 2 2 1 2 2 . 1 2 2 2 2 2 1 . 2 2 2 2 2 2 2 2 1 1 1 2 2 2 1 2 3 2 . 3 3 3 Hottest 301 | 70 70 40 56 43 . 33 126 103 56 92 92 55 . 61 165 129 86 66 68 155 85 43 30 43 169 118 90 33 90 220 132 . 224 274 301 Shots Fired 2508 | 6 11 15 102 31 . 9 115 139 87 67 58 11 . 28 132 87 34 74 103 259 19 11 12 7 99 27 59 33 31 108 6 . 71 293 364 Gun 1071 | 6 10 10 71 20 . . 35 73 87 46 26 7 . 21 73 59 12 74 103 86 6 . . . 61 16 31 33 17 12 . . . 18 58 Cannon 1155 | . . . . . . . 61 38 . 19 16 . . . 47 28 12 . . 137 3 . . . 32 11 28 . 14 96 6 . 62 268 277 Launcher 258 | . 1 5 31 11 . 9 19 27 . 2 16 4 . 7 12 . 10 . . 36 10 11 . 7 6 . . . . . . . 9 6 19 Special 24 | . . . . . . . . 1 . . . . . . . . . . . . . . 12 . . . . . . . . . . 1 10 Kinetic 1568 | 3 5 . 68 20 . . 66 66 87 46 17 . . 14 76 77 24 74 103 148 9 . . . 64 14 59 33 31 101 6 . 42 160 155 Thermal 345 | 3 5 . . . . . . 7 . . 8 . . . 44 10 . . . 72 . . . . . . . . . . . . . 80 116 Explosive 6 | . 1 5 . . . . . . . . . . . . . . . . . . . . . . . . . . . . . . . . . Electromagnetic 550 | . . 10 34 11 . 9 49 65 . 21 33 11 . 14 12 . 10 . . 39 10 11 . 7 35 13 . . . 7 . . 29 52 68 Entropic 15 | . . . . . . . . . . . . . . . . . . . . . . . . . . . . . . . . . . . 15 Robot Hit Streak 59 | 5 6 8 13 11 . 3 13 18 16 23 14 13 . 23 21 14 8 26 19 29 15 7 13 9 14 11 8 9 12 19 5 . 19 32 59 Robot Miss Streak 5 | . 1 3 3 2 . 1 2 3 3 3 3 . . 1 3 4 2 2 4 2 1 . 1 1 2 1 3 2 2 2 2 . 3 4 5 Penetration Max 3 | . . . . . . . . . . . . . . . 1 1 . 2 2 3 . . . . . . 1 1 1 2 . . 1 2 1 Secondary Targets 8 | . . . . 1 . . . . . . . . . 1 . . . . 3 2 . . . . 1 . . . . . . . . . . Max Gunslinging Chain 1 | . . . . 1 . . . . . . . . . 1 . . . . 1 1 . . . . 1 . . . . . . . . . . Shots Hit Robots 1846 | 5 8 8 58 20 . 6 91 103 66 53 38 11 . 22 97 65 17 58 81 236 8 3 11 4 69 21 35 26 23 86 2 . 45 208 262 Core Hits 1261 | 2 5 11 45 17 . 7 57 48 19 18 37 5 . 20 55 28 21 23 56 143 21 14 . 9 41 5 14 10 8 52 2 . 68 113 287 Critical Hits 392 | . . . 2 1 . . 1 . 1 . . . . . 16 18 . 21 37 24 . . . . 10 2 15 8 9 53 1 . 27 84 62 Critical Kills 151 | . . . 1 1 . . . . . . . . . . 6 9 . 6 14 10 . . . . 4 1 5 2 3 26 1 . 8 24 30 Critical Parts Destroyed 211 | . . . 1 . . . 1 . . . . . . . 9 8 . 12 22 14 . . . . 5 1 10 3 6 23 . . 12 59 25 Melee Attacks 201 | . . . . . . . . . . 1 . . . . 13 4 . . . 46 3 1 7 . 10 . . . . 32 15 9 24 10 26 Impact . | . . . . . . . . . . . . . . . . . . . . . . . . . . . . . . . . . . . . Slashing 201 | . . . . . . . . . . 1 . . . . 13 4 . . . 46 3 1 7 . 10 . . . . 32 15 9 24 10 26 Piercing . | . . . . . . . . . . . . . . . . . . . . . . . . . . . . . . . . . . . . Sneak Attacks 6 | . . . . . . . . . . . . . . . . 3 . . . 2 . . . . . . . . . . . . 1 . . Combat Hostiles . | . . . . . . . . . . . . . . . . . . . . . . . . . . . . . . . . . . . . Follow-up Attacks . | . . . . . . . . . . . . . . . . . . . . . . . . . . . . . . . . . . . . Damage Inflicted 75628 | 63 195 459 1699 560 . 183 3009 2814 1680 1072 1487 318 . 763 3203 1413 1110 447 1039 9999 948 666 . 485 2947 584 777 223 578 2424 71 . 2670 6391 25351 Guns 14342 | 63 117 77 616 209 . . 430 1038 1680 519 380 121 . 315 864 508 189 447 1039 1846 49 . . . 1208 312 345 223 111 138 . . . 417 1081 Cannons 30675 | . . . . . . . 1076 726 . 433 202 . . . 1500 539 220 . . 3989 34 . . . 638 272 432 . 219 2286 12 . 932 4915 12250 Explosions 28943 | . 78 382 1083 351 . 183 1503 1050 . 120 905 197 . 448 839 . 701 . . 3100 865 666 . 485 1101 . . . 248 . . . 1607 1011 12020 Melee 1652 | . . . . . . . . . . . . . . . . 366 . . . 1064 . . . . . . . . . . 59 . 115 48 . Ramming 16 | . . . . . . . . . . . . . . . . . . . . . . . . . . . . . . . . . 16 . . Kinetic 25048 | 27 54 . 563 209 . . 861 897 1680 519 232 . . 230 1018 841 409 447 1039 3380 83 . . . 1451 249 777 223 330 2207 12 . 566 2621 4123 Thermal 24597 | 36 63 . 48 34 . 25 460 269 . . 280 . . . 1415 206 . . . 2884 114 . . 45 596 . . . . . . . 397 1869 15856 Explosive 698 | . 78 382 110 . . . . . . . . . . . . . . . . . . . . . . . . . . . . . . . 128 Electromagnetic 22401 | . . 77 978 317 . 158 1688 1648 . 553 975 318 . 533 770 . 701 . . 2671 751 666 . 440 900 335 . . 248 217 . . 1576 1853 4028 Impact . | . . . . . . . . . . . . . . . . . . . . . . . . . . . . . . . . . . . . Slashing 1652 | . . . . . . . . . . . . . . . . 366 . . . 1064 . . . . . . . . . . 59 . 115 48 . Piercing . | . . . . . . . . . . . . . . . . . . . . . . . . . . . . . . . . . . . . Entropic 1216 | . . . . . . . . . . . . . . . . . . . . . . . . . . . . . . . . . . . 1216 Highest Corruption 35 | . . . . . . . 1 5 11 11 7 7 7 7 5 4 . . 5 15 12 . 3 3 10 10 . . 1 . . . 2 7 35 Average Corruption 6 | . . . . . . . 1 3 9 8 7 7 7 7 1 2 . . 2 11 5 . 1 2 7 6 . . 1 . . . 1 2 11 Corruption Purged 60 | . . . . . . . . 8 1 5 . . . . 2 4 . . . 5 12 . . 4 . 10 . . 1 . . . . 8 . Effects 531 | . . . . . . . 1 17 26 41 32 26 7 17 8 2 . . 3 126 28 . . 1 37 29 . . 1 . . . 1 20 108 Message Errors 96 | . . . . . . . 1 5 3 8 11 5 2 4 1 1 . . . 16 6 . . . 7 11 . . . . . . . 5 10 Matter Fused 99 | . . . . . . . . 5 7 13 10 9 3 3 1 1 . . 1 12 7 . . 1 7 7 . . . . . . . 2 10 Heat Flow Errors 47 | . . . . . . . . 2 1 5 1 4 1 1 1 . . . . 12 3 . . . . 1 . . . . . . . 6 9 Energy Discharges 58 | . . . . . . . . 2 3 5 3 1 . . 2 . . . . 14 6 . . . 5 7 . . . . . . 1 3 6 Parts Rejected 9 | . . . . . . . . . . . . . . . . . . . . 4 . . . . . . . . . . . . . . 5 Data Loss (minor) 43 | . . . . . . . . 2 2 1 2 5 1 4 1 . . . 1 9 2 . . . 5 1 . . 1 . . . . 1 5 Data Loss (major) 13 | . . . . . . . . . 2 2 . . . 1 . . . . . 3 1 . . . 1 1 . . . . . . . . 2 Misfires 17 | . . . . . . . . . 1 3 1 1 . . 1 . . . . 2 3 . . . 3 . . . . . . . . . 2 Alerts 3 | . . . . . . . . . 1 . . . . . . . . . . 2 . . . . . . . . . . . . . . . Misdirections 16 | . . . . . . . . . . 1 . . . . . . . . . 12 . . . . . . . . . . . . . . 3 Targeting Errors 109 | . . . . . . . . 1 6 3 3 1 . 3 . . . . . 34 . . . . 8 1 . . . . . . . 2 47 Weapon Failures 21 | . . . . . . . . . . . 1 . . 1 1 . . . 1 6 . . . . 1 . . . . . . . . 1 9 Overload Shots . | . . . . . . . . . . . . . . . . . . . . . . . . . . . . . . . . . . . . Overflow Damage 3237 | . . . 45 . . . 54 9 . . 10 . . 1 50 170 . . . 337 13 1 . 2 293 15 . . 23 . . . 28 142 2044 Projectiles 1179 | . . . . . . . 28 9 . . . . . . 50 . . . . 143 . . . . . 15 . . . . . . . 142 792 Explosions 1768 | . . . 45 . . . 26 . . . 10 . . 1 . . . . . 74 13 1 . 2 293 . . . 23 . . . 28 . 1252 Melee 290 | . . . . . . . . . . . . . . . . 170 . . . 120 . . . . . . . . . . . . . . . Knockbacks 111 | . . . . . . . 5 . . . . . . . 9 2 . . . 17 . . . . 4 . 8 . 6 12 . . 4 29 15 Impact . | . . . . . . . . . . . . . . . . . . . . . . . . . . . . . . . . . . . . Kinetic 108 | . . . . . . . 5 . . . . . . . 8 1 . . . 16 . . . . 4 . 8 . 6 12 . . 4 29 15 Secondary 3 | . . . . . . . . . . . . . . . 1 1 . . . 1 . . . . . . . . . . . . . . . Self-Inflicted Damage 1511 | . . 60 43 9 . 33 125 98 . . 174 . . . 71 . 28 . . 182 . . . 33 308 . . . 21 . . . 53 . 273 Shots 88 | . . 5 3 1 . 2 6 7 . . 8 . . . 5 . 2 . . 13 . . . 3 6 . . . 1 . . . 8 . 18 Rammed 1 | . . . . . . . . . . . . . . . . . . . . . . . . . . . . . . . . . 1 . . Targets Rammed 1 | . . . . . . . . . . . . . . . . . . . . . . . . . . . . . . . . . 1 . . Kicked . | . . . . . . . . . . . . . . . . . . . . . . . . . . . . . . . . . . . . Crushed . | . . . . . . . . . . . . . . . . . . . . . . . . . . . . . . . . . . . . Highest Temperature 626 | 27 45 . 54 35 . 20 224 393 268 262 626 116 226 199 193 12 . . 13 430 197 10 . 10 315 226 126 . 90 497 246 4 263 347 414 Average Temperature 77 | 14 22 . 17 12 . 9 59 84 110 77 175 63 113 109 62 9 . . 3 111 38 6 . 7 71 88 50 . 34 180 122 2 29 77 100 Received Heat Transfer 8453 | . . . 249 111 . . 612 300 . . 345 54 . 78 624 232 18 9 1371 1143 90 12 66 33 12 . 243 . . 51 18 . 63 227 2492 Effects 34 | . . . . . . . 1 . . . 4 . . . . . . . . 2 . . . . . . . . . 16 . . 4 2 5 Shutdowns 9 | . . . . . . . . . . . 1 . . . . . . . . 2 . . . . . . . . . 1 . . . 1 4 Energy Bleed 2 | . . . . . . . 1 . . . 1 . . . . . . . . . . . . . . . . . . . . . . . . Interference 10 | . . . . . . . . . . . . . . . . . . . . . . . . . . . . . . 5 . . 4 1 . Matter Decay 5 | . . . . . . . . . . . 1 . . . . . . . . . . . . . . . . . . 4 . . . . . Short Circuit 2 | . . . . . . . . . . . . . . . . . . . . . . . . . . . . . . 2 . . . . . Damage (minor) 2 | . . . . . . . . . . . . . . . . . . . . . . . . . . . . . . 1 . . . . 1 Damage (major) 3 | . . . . . . . . . . . . . . . . . . . . . . . . . . . . . . 3 . . . . . Damage (core) 1 | . . . . . . . . . . . 1 . . . . . . . . . . . . . . . . . . . . . . . . Siege Activations 73 | . . . . . . . . . . 3 2 . . . 8 5 . 2 2 12 1 . . . 4 3 2 . 1 9 . . 4 9 6 Total Turns 2251 | . . . . . . . . . . 43 50 . . . 226 73 . 46 88 327 7 . . . 122 286 55 . 24 183 . . 89 286 346 Longest Duration 165 | . . . . . . . . . . 21 36 . . . 82 38 . 40 57 75 7 . . . 65 155 32 . 24 64 . . 46 67 165 Robots Corrupted 77 | . . . . . . . 8 6 . 2 2 . . 1 2 . 3 . . 12 3 3 . 1 2 2 . . . 1 . . 8 6 15 Combat Hostiles 75 | . . . . . . . 8 6 . 2 2 . . 1 2 . 3 . . 12 3 3 . 1 2 2 . . . 1 . . 8 6 13 Parts Fried 136 | . . 1 3 . . 1 11 12 . 3 3 1 . . 5 3 1 . . 16 7 3 . 2 3 3 . . . . . . 13 10 35 Impact Corruptions . | . . . . . . . . . . . . . . . . . . . . . . . . . . . . . . . . . . . . Robots Melted 2 | . . . . . . . . . . . . . . . . . . . . . . . . . . . . . . . . . . . 2 Combat Hostiles 2 | . . . . . . . . . . . . . . . . . . . . . . . . . . . . . . . . . . . 2 Parts Melted 24 | . . . . . . . . . . . . . . . 1 3 . . . . . . . . . . . . 5 . . . 1 1 13 Heat Transferred 21600 | 111 185 . 50 50 . 100 550 500 . . 398 . . . 1058 333 . . . 2992 150 . . 50 350 . . . . . . . 200 1554 12969 Parts Sabotaged 4 | . . . . . . . . . . . . . . . . . . . . 3 . . . . . . . . . . . . . 1 . Parts Stolen . | . . . . . . . . . . . . . . . . . . . . . . . . . . . . . . . . . . . . Parts Stripped . | . . . . . . . . . . . . . . . . . . . . . . . . . . . . . . . . . . . . Power Chain Reactions 41 | . . . 8 1 . 3 5 4 . . 4 . . 1 1 . . . . 4 1 . . 1 . . . . . . . . 3 . 5 Missiles Intercepted . | . . . . . . . . . . . . . . . . . . . . . . . . . . . . . . . . . . . . Alert | -11 -10 -10 -9 -9 -9 -8 -8 -7 -7 -7 -7 -7 -7 -6 -6 -6 -6 -6 -6 -5 -5 -5 -5 -4 -4 -4 -4 -4 -3 -3 -3 -3 -2 -2 -1 ------- Run | Scr Mat Min Mat Min Exi Min Mat Fac Was Fac Low Low Dat Pro Fac Ext Cet Arc Hub Fac Upp Upp War Pro Fac Upp Upp Zhi Pro Res Arm Lab Res Tes Acc Peak Influence 3572 | 5 88 139 602 381 . 142 562 398 130 150 . . . . 500 288 407 209 397 1990 . . . . 1227 . . . . 760 499 . 654 1627 3572 Average Influence 514 | 1 59 21 327 265 . 31 281 241 79 74 . . . . 302 135 193 181 206 933 . . . . 412 . . . . 465 420 . 92 1068 1795 Maximum Alert Level 5 | . . . 2 1 . . 2 1 . . . . . . 2 1 2 1 1 5 . . . . 4 . . . . 3 2 . 2 5 5 Low Security (%) 38 | 100 100 100 21 39 . 100 31 32 100 100 . . . . 18 77 46 61 65 1 . . . . 61 . . . . 14 . . 85 . . Level 1 20 | . . . 43 60 . . 41 67 . . . . . . 56 22 51 38 34 3 . . . . 7 . . . . 16 24 . 1 9 . Level 2 16 | . . . 34 . . . 26 . . . . . . . 24 . 2 . . 36 . . . . . . . . . 53 75 . 12 12 . Level 3 10 | . . . . . . . . . . . . . . . . . . . . 33 . . . . 10 . . . . 14 . . . 29 26 Level 4 7 | . . . . . . . . . . . . . . . . . . . . 7 . . . . 20 . . . . . . . . 43 27 Level 5 3 | . . . . . . . . . . . . . . . . . . . . 6 . . . . . . . . . . . . . 5 26 High Security 2 | . . . . . . . . . . . . . . . . . . . . 9 . . . . . . . . . . . . . . 20 Max Security . | . . . . . . . . . . . . . . . . . . . . . . . . . . . . . . . . . . . . Squads Dispatched 133 | . 1 . 4 . . . 7 6 . 3 . . . . 11 2 . . 7 22 . . . . 7 . 1 . . 10 . . 1 14 37 Investigation 21 | . 1 . 2 . . . 2 . . 1 . . . . 4 1 . . 1 . . . . . 1 . 1 . . 5 . . . 1 1 Extermination 18 | . . . . . . . . 3 . 1 . . . . 2 . . . 1 2 . . . . 3 . . . . . . . . 3 3 Reinforcement 35 | . . . 2 . . . 3 1 . 1 . . . . 2 1 . . 2 6 . . . . 1 . . . . 5 . . 1 4 6 Assault 47 | . . . . . . . . . . . . . . . . . . . 1 14 . . . . 2 . . . . . . . . 6 24 Garrison 12 | . . . . . . . 2 2 . . . . . . 3 . . . 2 . . . . . . . . . . . . . . . 3 Intercept . | . . . . . . . . . . . . . . . . . . . . . . . . . . . . . . . . . . . . Construction Impeded 7 | . . . . . . . . . . . . . . . 1 . . . . 4 . . . . . . . . . . . . . . 2 Haulers Reinforced 10 | . . . . . . . . . . . . . . . 1 . . . . 1 . . . . 1 . . . . 2 . . 1 1 3 Stealth | -11 -10 -10 -9 -9 -9 -8 -8 -7 -7 -7 -7 -7 -7 -6 -6 -6 -6 -6 -6 -5 -5 -5 -5 -4 -4 -4 -4 -4 -3 -3 -3 -3 -2 -2 -1 --------- Run | Scr Mat Min Mat Min Exi Min Mat Fac Was Fac Low Low Dat Pro Fac Ext Cet Arc Hub Fac Upp Upp War Pro Fac Upp Upp Zhi Pro Res Arm Lab Res Tes Acc Distress Signals 41 | . . . 5 . . . 2 1 . . . . . . 4 1 2 . 1 2 . . . . 1 . . . . 7 . . 9 4 2 Communications Jammed 212 | . . . . . . . . . . . . . . . . . . . . . . . . . . . . . . . 5 . . 93 114 Distress Signals 211 | . . . . . . . . . . . . . . . . . . . . . . . . . . . . . . . 5 . . 93 113 Times Spotted 857 | . 2 6 39 8 . 5 44 29 6 13 17 3 . 17 38 30 17 25 29 93 12 10 19 6 29 3 17 . 13 40 7 . 30 75 175 Peak Tracking Total 29 | . 2 3 6 3 . 4 6 5 2 3 7 3 . 5 7 6 6 1 9 16 5 7 21 4 7 2 8 . 5 8 3 . 7 8 29 Tactical Retreats 66 | . . . 3 1 . . 3 3 . 1 1 . . 5 5 1 . . 4 9 3 . . . . . 4 . 3 3 . . 1 8 8 Traps | -11 -10 -10 -9 -9 -9 -8 -8 -7 -7 -7 -7 -7 -7 -6 -6 -6 -6 -6 -6 -5 -5 -5 -5 -4 -4 -4 -4 -4 -3 -3 -3 -3 -2 -2 -1 ------- Run | Scr Mat Min Mat Min Exi Min Mat Fac Was Fac Low Low Dat Pro Fac Ext Cet Arc Hub Fac Upp Upp War Pro Fac Upp Upp Zhi Pro Res Arm Lab Res Tes Acc Traps Triggered 21 | . . . . . . . . 9 . 1 . . . . 1 2 . . . 3 . . . . 2 . . . . 2 . . . . 1 Indirectly 6 | . . . . . . . . 2 . . . . . . 1 . . . . 2 . . . . . . . . . . . . . . 1 Trap Hack Attempts . | . . . . . . . . . . . . . . . . . . . . . . . . . . . . . . . . . . . . Triggered . | . . . . . . . . . . . . . . . . . . . . . . . . . . . . . . . . . . . . Disarmed 6 | . . . 6 . . . . . . . . . . . . . . . . . . . . . . . . . . . . . . . . Reprogrammed 16 | . . . . . . . . . . . . . . . 4 . . . . 12 . . . . . . . . . . . . . . . Reused 4 | . . . . . . . . . . . . . . . . . . . . 2 . . . . . . . . 2 . . . . . . Traps Extracted . | . . . . . . . . . . . . . . . . . . . . . . . . . . . . . . . . . . . . Installed 2 | . . . . . . . . . . . . . . . . . . . . . . . . . . . . . 2 . . . . . . Triggered 17 | . . . . . . . . . . . . . . 1 . . . . . 2 . . 7 5 . . . . 2 . . . . . . Machines | -11 -10 -10 -9 -9 -9 -8 -8 -7 -7 -7 -7 -7 -7 -6 -6 -6 -6 -6 -6 -5 -5 -5 -5 -4 -4 -4 -4 -4 -3 -3 -3 -3 -2 -2 -1 ---------- Run | Scr Mat Min Mat Min Exi Min Mat Fac Was Fac Low Low Dat Pro Fac Ext Cet Arc Hub Fac Upp Upp War Pro Fac Upp Upp Zhi Pro Res Arm Lab Res Tes Acc Machines Disabled 58 | . . 1 4 . . 1 1 2 . . . . . . 4 4 1 1 1 13 . . . . 10 . . . . . 2 2 2 5 4 Max in Single Turn 8 | . . 1 1 . . 1 1 1 . . . . . . 1 1 1 . 1 8 . . . . 4 . . . . . 1 1 1 1 1 Garrison Access 8 | . . . . . . . . . . 1 . . . . . . . . 1 2 . . . . 1 . . . . . . . 1 1 1 Network Hub 5 | . . . . . . . . . . . . . . . . . . . 5 . . . . . . . . . . . . . . . . Machines Sabotaged 1 | . . . . . . . . . . . . . . . . . . . 1 . . . . . . . . . . . . . . . . Garrisons Compromised . | . . . . . . . . . . . . . . . . . . . . . . . . . . . . . . . . . . . . Overloaded Fab Kills . | . . . . . . . . . . . . . . . . . . . . . . . . . . . . . . . . . . . . Fab Network Shutdowns 4 | . . . . . . . . . . . . . . . . . . . . 1 . . . . 1 . . . . 1 . . . 1 . Hacking | -11 -10 -10 -9 -9 -9 -8 -8 -7 -7 -7 -7 -7 -7 -6 -6 -6 -6 -6 -6 -5 -5 -5 -5 -4 -4 -4 -4 -4 -3 -3 -3 -3 -2 -2 -1 --------- Run | Scr Mat Min Mat Min Exi Min Mat Fac Was Fac Low Low Dat Pro Fac Ext Cet Arc Hub Fac Upp Upp War Pro Fac Upp Upp Zhi Pro Res Arm Lab Res Tes Acc Machines Accessed 117 | . 3 1 7 1 1 . 5 3 . 10 . 2 4 . 9 14 4 . 2 8 . . 3 . 7 2 2 4 1 7 . . 1 9 7 Terminals 56 | . 3 1 3 1 . . 4 1 . 6 . . . . 4 11 4 . 2 2 . . . . 2 . 1 . 1 1 . . 1 4 4 Fabricators 12 | . . . . . . . . . . . . . . . 3 . . . . 3 . . . . 2 . . . . 2 . . . 1 1 Repair Stations 9 | . . . 1 . . . . . . 2 . . . . . 1 . . . 1 . . . . 1 . . . . 1 . . . 2 . Recycling Units 8 | . . . 2 . . . . . . . . . . . . 2 . . . 1 . . . . 1 . . . . 2 . . . . . Scanalyzers 8 | . . . 1 . . . 1 1 . 1 . . . . . . . . . 1 . . . . . . . . . 1 . . . 1 1 Garrison Access 7 | . . . . . . . . 1 . 1 . . . . 2 . . . . . . . . . 1 . . . . . . . . 1 1 Total Hacks 471 | . 10 2 23 2 1 . 13 7 . 31 . 8 25 . 21 40 17 . 2 62 . . 8 . 45 4 18 17 6 37 . . 7 43 22 Successful 268 | . 5 2 15 2 1 . 2 2 . 18 . 8 25 . 6 21 7 . 1 44 . . 8 . 28 4 10 17 3 16 . . 3 13 7 Failed 202 | . 4 . 8 . . . 11 5 . 13 . . . . 15 19 10 . 1 18 . . . . 17 . 8 . 3 21 . . 4 30 15 Catastrophic 48 | . 1 . 1 . . . 1 . . 7 . . . . 3 4 . . 1 1 . . . . 3 . 5 . 1 3 . . 1 9 7 Database Lockouts 1 | . 1 . . . . . . . . . . . . . . . . . . . . . . . . . . . . . . . . . . Manual 173 | . 6 2 10 2 . . 6 4 . 9 . . . . 16 30 17 . 2 15 . . 1 . 15 . 9 . 4 10 . . 3 7 5 Terminals 209 | . 10 2 13 2 . . 11 2 . 14 . . . . 10 31 17 . 2 18 . . . . 16 . 12 . 6 8 . . 7 15 13 Fabricators 69 | . . . . . . . . . . . . . . . 6 . . . . 18 . . . . 19 . . . . 16 . . . 6 4 Repair Stations 37 | . . . 3 . . . . . . 4 . . . . . 2 . . . 10 . . . . 5 . . . . 2 . . . 11 . Recycling Units 24 | . . . 5 . . . . . . . . . . . . 7 . . . 1 . . . . 3 . . . . 8 . . . . . Scanalyzers 43 | . . . 2 . . . 2 3 . 10 . . . . . . . . . 15 . . . . . . . . . 3 . . . 6 2 Garrison Access 20 | . . . . . . . . 2 . 3 . . . . 5 . . . . . . . . . 2 . . . . . . . . 5 3 Terminal Hacks 132 | . 5 2 7 1 1 . 2 . . 4 . 8 25 . 2 10 4 . . 8 . . 8 . 4 4 10 17 3 3 . . 3 1 . Record 38 | . . . . . 1 . . . . . . 7 11 . . . . . . . . . . . . 3 9 5 2 . . . . . . Part Schematic 14 | . 1 . . . . . . . . 2 . . 5 . . . . . . . . . . . . . 1 4 1 . . . . . . Robot Schematic 6 | . . . . . . . . . . . . . 6 . . . . . . . . . . . . . . . . . . . . . . Robot Analysis 12 | . . 2 . . . . . . . 1 . . . . . 2 1 . . 2 . . . . . . . 4 . . . . . . . Prototype ID Bank 16 | . 1 . 1 . . . . . . 1 . . 3 . . . . . . . . . 6 . . . . 4 . . . . . . . Open Door 4 | . . . . . . . . . . . . 1 . . . . . . . . . . 2 . . 1 . . . . . . . . . Level Access Points 1 | . . . . . . . . . . . . . . . . . . . . . . . . . . . . . . 1 . . . . . Branch Access Points 6 | . 1 . 1 . . . . . . . . . . . 1 . . . . 1 . . . . 1 . . . . . . . 1 . . Emergency Access Points 1 | . . . . . . . . . . . . . . . . . . . . . . . . . . . . . . . . . 1 . . Terminal Index 2 | . . . . . . . . . . . . . . . . . . . . . . . . . 1 . . . . 1 . . . . . Fabricator Index 1 | . . . . . . . . . . . . . . . . . . . . 1 . . . . . . . . . . . . . . . Scanalyzer Index 1 | . . . 1 . . . . . . . . . . . . . . . . . . . . . . . . . . . . . . . . Unreport Threat 9 | . . . 2 . . . 1 . . . . . . . . 2 3 . . . . . . . . . . . . . . . . 1 . Locate Traps 3 | . . . 1 . . . . . . . . . . . . 1 . . . 1 . . . . . . . . . . . . . . . Disarm Traps 1 | . . . 1 . . . . . . . . . . . . . . . . . . . . . . . . . . . . . . . . Reprogram Traps 3 | . . . . . . . . . . . . . . . 1 . . . . 2 . . . . . . . . . . . . . . . Security Status 1 | . . . . . . . . . . . . . . . . . . . . . . . . . . . . . . 1 . . . . . Recall Investigation 2 | . 1 . . . . . . . . . . . . . . 1 . . . . . . . . . . . . . . . . . . . Recall Reinforcements 2 | . . . . . . . 1 . . . . . . . . 1 . . . . . . . . . . . . . . . . . . . Hauler Manifests 1 | . . . . . . . . . . . . . . . . . . . . . . . . . 1 . . . . . . . . . . Registered Components 1 | . . . . . . . . . . . . . . . . . . . . . . . . . . . . . . . . . 1 . . Registered Prototypes 1 | . 1 . . . . . . . . . . . . . . . . . . . . . . . . . . . . . . . . . . Zone Layout 6 | . . . . 1 . . . . . . . . . . . 3 . . . 1 . . . . 1 . . . . . . . . . . Fabricator Hacks 26 | . . . . . . . . . . . . . . . 2 . . . . 8 . . . . 10 . . . . 3 . . . 2 1 Network Status 1 | . . . . . . . . . . . . . . . . . . . . . . . . . 1 . . . . . . . . . . Load Schematic 11 | . . . . . . . . . . . . . . . 1 . . . . 3 . . . . 3 . . . . 2 . . . 1 1 Build 14 | . . . . . . . . . . . . . . . 1 . . . . 5 . . . . 6 . . . . 1 . . . 1 . Repair Station Hacks 24 | . . . 1 . . . . . . 2 . . . . . 1 . . . 9 . . . . 4 . . . . 2 . . . 5 . Scan Component 14 | . . . 1 . . . . . . 1 . . . . . 1 . . . 5 . . . . 2 . . . . 1 . . . 3 . Repair 10 | . . . . . . . . . . 1 . . . . . . . . . 4 . . . . 2 . . . . 1 . . . 2 . Recycling Unit Hacks 9 | . . . 2 . . . . . . . . . . . . 2 . . . 1 . . . . 1 . . . . 3 . . . . . Retrieve Matter 1 | . . . . . . . . . . . . . . . . . . . . . . . . . . . . . . 1 . . . . . Retrieve Components 8 | . . . 2 . . . . . . . . . . . . 2 . . . 1 . . . . 1 . . . . 2 . . . . . Scanalyzer 30 | . . . 2 . . . . 1 . 10 . . . . . . . . . 11 . . . . . . . . . 1 . . . 3 2 Insert Component 15 | . . . 1 . . . . 1 . 3 . . . . . . . . . 4 . . . . . . . . . 1 . . . 3 2 Analyze 15 | . . . 1 . . . . . . 7 . . . . . . . . . 7 . . . . . . . . . . . . . . . Garrison Access Hacks 2 | . . . . . . . . . . 1 . . . . . . . . . . . . . . . . . . . . . . . . 1 Seal Access 2 | . . . . . . . . . . 1 . . . . . . . . . . . . . . . . . . . . . . . . 1 Unauthorized Hacks 131 | . . . 7 2 . . 1 5 . 7 . . . . 12 19 8 . 3 15 . . . . 23 . . . . 13 . . . 8 8 Terminals 23 | . . . 1 1 . . . . . 1 . . . . 2 6 3 . 1 2 . . . . 2 . . . . 1 . . . 1 2 Track 5 | . . . . 1 . . . . . . . . . . 1 2 . . . . . . . . . . . . . . . . . . 1 Botnet 14 | . . . 1 . . . . . . 1 . . . . 1 3 2 . . 1 . . . . 2 . . . . 1 . . . 1 1 Disrupt 2 | . . . . . . . . . . . . . . . . . 1 . . 1 . . . . . . . . . . . . . . . Operators 1 | . . . . . . . . . . . . . . . . 1 . . . . . . . . . . . . . . . . . . . Sabotage 1 | . . . . . . . . . . . . . . . . . . . 1 . . . . . . . . . . . . . . . . Fabricators 13 | . . . . . . . . . . . . . . . . . . . . 5 . . . . 5 . . . . 1 . . . 1 1 Report 2 | . . . . . . . . . . . . . . . . . . . . 1 . . . . 1 . . . . . . . . . . Prioritize 4 | . . . . . . . . . . . . . . . . . . . . 2 . . . . 2 . . . . . . . . . . Siphon 6 | . . . . . . . . . . . . . . . . . . . . 2 . . . . 2 . . . . . . . . 1 1 Haulers 1 | . . . . . . . . . . . . . . . . . . . . . . . . . . . . . . 1 . . . . . Repair Stations . | . . . . . . . . . . . . . . . . . . . . . . . . . . . . . . . . . . . . Recycling Units 7 | . . . 2 . . . . . . . . . . . . 2 . . . . . . . . 1 . . . . 2 . . . . . Mask 5 | . . . . . . . . . . . . . . . . 2 . . . . . . . . 1 . . . . 2 . . . . . Tunnel 2 | . . . 2 . . . . . . . . . . . . . . . . . . . . . . . . . . . . . . . . Scanalyzers . | . . . . . . . . . . . . . . . . . . . . . . . . . . . . . . . . . . . . Garrison Access 2 | . . . . . . . . 1 . . . . . . . . . . . . . . . . 1 . . . . . . . . . . Reprogram 1 | . . . . . . . . 1 . . . . . . . . . . . . . . . . . . . . . . . . . . . Jam 1 | . . . . . . . . . . . . . . . . . . . . . . . . . 1 . . . . . . . . . . Data Cores Recovered . | . . . . . . . . . . . . . . . . . . . . . . . . . . . . . . . . . . . . Used . | . . . . . . . . . . . . . . . . . . . . . . . . . . . . . . . . . . . . Hacking Detections 82 | . 3 . 5 1 . . 5 3 . 9 . . . . 9 12 4 . 1 5 . . . . 2 . 1 . 1 5 . . 1 8 7 Full Trace Events 13 | . 2 . . . . . 2 . . 1 . . . . 3 1 . . . . . . . . . . 1 . . 1 . . . 1 1 Feedback Events 1 | . . . . . . . . . . . . . . . . . . . . . . . . . . . . . . . . . . 1 . Hackware Fried 1 | . . . . . . . . . . . . . . . . . . . . . . . . . . . . . . . . . . 1 . Feedback Blocked . | . . . . . . . . . . . . . . . . . . . . . . . . . . . . . . . . . . . . Robot Schematics Acquired 6 | . . . . . . . . . . . . . 6 . . . . . . . . . . . . . . . . . . . . . . Robots Built . | . . . . . . . . . . . . . . . . . . . . . . . . . . . . . . . . . . . . Matter . | . . . . . . . . . . . . . . . . . . . . . . . . . . . . . . . . . . . . Time . | . . . . . . . . . . . . . . . . . . . . . . . . . . . . . . . . . . . . Total Robot Build Rating . | . . . . . . . . . . . . . . . . . . . . . . . . . . . . . . . . . . . . Part Schematics Acquired 22 | . 1 . 1 . . . . . . 5 . . 5 . . . . . . 4 . . . . . . 1 4 1 . . . . . . Parts Built 12 | . . . . . . . . . . . . . . . 2 . . . . 4 . . . . 4 . . . . 1 . . . 1 . Matter 3106 | . . . . . . . . . . . . . . . 212 . . . . 1244 . . . . 1152 . . . . 285 . . . 213 . Time 1091 | . . . . . . . . . . . . . . . 106 . . . . 502 . . . . 357 . . . . 50 . . . 76 . Total Part Build Rating 80 | . . . . . . . . . . . . . . . 12 . . . . 26 . . . . 32 . . . . 5 . . . 5 . Parts Repaired 10 | . . . . . . . . . . 1 . . . . . . . . . 4 . . . . 2 . . . . 1 . . . 2 . Time 538 | . . . . . . . . . . 38 . . . . . . . . . 204 . . . . 216 . . . . 18 . . . 62 . Parts Recycled . | . . . . . . . . . . . . . . . . . . . . . . . . . . . . . . . . . . . . Recycled Matter . | . . . . . . . . . . . . . . . . . . . . . . . . . . . . . . . . . . . . Retrieved Matter . | . . . . . . . . . . . . . . . . . . . . . . . . . . . . . . . . . . . . Retrieved Components 36 | . . . 4 . . . . . . . . . . . . 10 . . . 10 . . . . 10 . . . . 2 . . . . . Parts Scanalyzed 11 | . . . 1 . . . . 1 . 3 . . . . . . . . . 4 . . . . . . . . . 1 . . . 1 . Part Schematics Acquired 8 | . . . 1 . . . . . . 3 . . . . . . . . . 4 . . . . . . . . . . . . . . . Parts Damaged 1 | . . . . . . . . . . . . . . . . . . . . 1 . . . . . . . . . . . . . . . Bothacking | -11 -10 -10 -9 -9 -9 -8 -8 -7 -7 -7 -7 -7 -7 -6 -6 -6 -6 -6 -6 -5 -5 -5 -5 -4 -4 -4 -4 -4 -3 -3 -3 -3 -2 -2 -1 ------------ Run | Scr Mat Min Mat Min Exi Min Mat Fac Was Fac Low Low Dat Pro Fac Ext Cet Arc Hub Fac Upp Upp War Pro Fac Upp Upp Zhi Pro Res Arm Lab Res Tes Acc Used RIF Installer . | . . . . . . . . . . . . . . . . . . . . . . . . . . . . . . . . . . . . Robots Hacked 1 | . . . . . . . . 1 . . . . . . . . . . . . . . . . . . . . . . . . . . . Non-combat 1 | . . . . . . . . 1 . . . . . . . . . . . . . . . . . . . . . . . . . . . Combat . | . . . . . . . . . . . . . . . . . . . . . . . . . . . . . . . . . . . . Robot Hacks Applied 1 | . . . . . . . . 1 . . . . . . . . . . . . . . . . . . . . . . . . . . . find_chute 1 | . . . . . . . . 1 . . . . . . . . . . . . . . . . . . . . . . . . . . . Relay Couplers Released 7 | . . . . . . . . . . . . . . . . . . . 3 1 . . . . . . . . . . . . 1 2 . Machine Destruction 7 | . . . . . . . . . . . . . . . . . . . 3 1 . . . . . . . . . . . . 1 2 . Robots Rewired 27 | . . . . . . . . . . . 2 . . . . 15 . . . . . . 5 1 . . . . . . . . . 1 3 Allies Hacked 2 | . . . . . . . . . . . . . . . . . . . . . . . 1 . . . . . . . . . . . 1 Hacks Repelled . | . . . . . . . . . . . . . . . . . . . . . . . . . . . . . . . . . . . . Allies | -11 -10 -10 -9 -9 -9 -8 -8 -7 -7 -7 -7 -7 -7 -6 -6 -6 -6 -6 -6 -5 -5 -5 -5 -4 -4 -4 -4 -4 -3 -3 -3 -3 -2 -2 -1 -------- Run | Scr Mat Min Mat Min Exi Min Mat Fac Was Fac Low Low Dat Pro Fac Ext Cet Arc Hub Fac Upp Upp War Pro Fac Upp Upp Zhi Pro Res Arm Lab Res Tes Acc Total Allies 45 | . . 2 . 1 . . . 1 . . 2 . . 1 . 23 . . . 3 . . 5 1 . . . . . 2 . . . 1 3 Largest Group 15 | . . 2 2 1 . . . 1 1 . 2 . . 1 . 15 15 2 . 3 . . 5 1 1 . . . . 2 . . . 1 1 Highest-Rated Group 452 | . . 42 42 31 . . . 32 32 . 46 . . 94 . 452 449 65 . 93 . . 223 47 47 . . . . 92 . . . 27 206 Highest-Rated Ally 206 | . . 31 31 31 . . . 32 32 . 30 . . 94 . 156 37 37 . 31 . . 49 47 47 . . . . 46 . . . 27 206 Total Orders 18 | . . . . . . . . . . . . . . . . . 4 1 5 . . . . . . . . . . 2 . . . 4 2 GOTO 9 | . . . . . . . . . . . . . . . . . 2 1 3 . . . . . . . . . . . . . . 2 1 FOLLOW 3 | . . . . . . . . . . . . . . . . . 2 . . . . . . . . . . . . . . . . . 1 AID 2 | . . . . . . . . . . . . . . . . . . . . . . . . . . . . . . . . . . 2 . EXPLORE 4 | . . . . . . . . . . . . . . . . . . . 2 . . . . . . . . . . 2 . . . . . Ally Attacks 326 | . . . 10 5 . . . . 15 . 8 . . 25 . 131 63 9 . 41 . . 4 . 1 . . . . 4 . . . . 10 Total Damage 8082 | . . . 185 63 . . . . 869 . 105 . . 753 . 2719 1339 145 . 592 . . 84 . 38 . . . . 133 . . . . 1057 Kills 47 | . . . 4 . . . . . 1 . 2 . . 6 . 13 10 2 . 7 . . . . . . . . . . . . . . 2 Allies Corrupted 1 | . . . . . . . . . . . . . . . . . . . . . . . . . . . . . . . . . . . 1 Allies Melted 1 | . . . . . . . . . . . . 1 . . . . . . . . . . . . . . . . . . . . . . . Intel | -11 -10 -10 -9 -9 -9 -8 -8 -7 -7 -7 -7 -7 -7 -6 -6 -6 -6 -6 -6 -5 -5 -5 -5 -4 -4 -4 -4 -4 -3 -3 -3 -3 -2 -2 -1 ------- Run | Scr Mat Min Mat Min Exi Min Mat Fac Was Fac Low Low Dat Pro Fac Ext Cet Arc Hub Fac Upp Upp War Pro Fac Upp Upp Zhi Pro Res Arm Lab Res Tes Acc Robot Analysis Total 12 | . . 2 . . . . . . . 1 . . . . . 2 1 . . 2 . . . . . . . 4 . . . . . . . Derelict Logs Recovered 13 | . . 2 . 2 . . . . . . . 2 . . . . . . . . 2 1 . 2 . 1 1 . . . . . . . . Drone Launches 8 | . . . . . . . . . . . . . . . . . . 4 2 . . . . . . . . . . 2 . . . . . Drone Recoveries . | . . . . . . . . . . . . . . . . . . . . . . . . . . . . . . . . . . . . Decoded 0b10 Intel 3 | . . . . . . . . . . . . . . . . . . . . . . . . . . . . . . 3 . . . . . Items 3 | . . . . . . . . . . . . . . . . . . . . . . . . . . . . . . 3 . . . . . Exploration | -11 -10 -10 -9 -9 -9 -8 -8 -7 -7 -7 -7 -7 -7 -6 -6 -6 -6 -6 -6 -5 -5 -5 -5 -4 -4 -4 -4 -4 -3 -3 -3 -3 -2 -2 -1 ------------- Run | Scr Mat Min Mat Min Exi Min Mat Fac Was Fac Low Low Dat Pro Fac Ext Cet Arc Hub Fac Upp Upp War Pro Fac Upp Upp Zhi Pro Res Arm Lab Res Tes Acc Turns Passed 33514 | 61 138 941 901 590 349 512 1040 1747 511 992 961 871 152 470 1196 1684 438 231 429 2522 1730 677 951 414 1304 2184 894 366 520 1996 459 391 1162 1833 1897 Spaces Moved 13896 | 41 115 567 391 308 217 291 427 915 141 421 435 466 84 219 396 708 188 60 139 843 457 390 553 242 607 382 476 179 274 854 204 195 520 626 565 Core 4 | 3 . . . . . . . . . . . . . . . . . . . . . . . . . . . . . . . . . . 1 Treads 11213 | . . . 199 192 . . 201 60 79 421 435 466 84 219 396 708 188 60 139 843 457 390 553 242 607 382 476 179 274 854 204 195 520 626 564 Legs . | . . . . . . . . . . . . . . . . . . . . . . . . . . . . . . . . . . . . Wheels 2679 | 38 115 567 192 116 217 291 226 855 62 . . . . . . . . . . . . . . . . . . . . . . . . . . Hover . | . . . . . . . . . . . . . . . . . . . . . . . . . . . . . . . . . . . . Flight . | . . . . . . . . . . . . . . . . . . . . . . . . . . . . . . . . . . . . Fastest Speed 50 | 50 100 100 100 130 120 170 130 123 170 165 180 180 180 180 160 160 160 160 160 160 160 160 160 160 160 160 160 163 163 163 173 173 155 155 50 Average Speed 161 | 96 100 100 150 165 152 170 167 145 180 184 183 180 180 180 168 170 160 160 160 162 160 160 160 160 160 160 161 163 163 174 176 173 168 160 163 Slowest Speed 230 | 100 100 100 220 180 170 170 200 230 190 185 185 180 180 180 180 180 160 160 160 180 160 160 160 160 180 160 163 163 163 186 186 173 175 183 186 Overloaded Moves . | . . . . . . . . . . . . . . . . . . . . . . . . . . . . . . . . . . . . Propulsion Burnouts . | . . . . . . . . . . . . . . . . . . . . . . . . . . . . . . . . . . . . Robots Hopped 1 | . . . . . . . . . . . . . . . . . 1 . . . . . . . . . . . . . . . . . . Cave-ins Triggered 1 | . . . . . . . . . . . . . . . 1 . . . . . . . . . . . . . . . . . . . . Teleports 1 | . . . . . . . . . . . . . . . . . . . . . . . . . . . . . . . 1 . . . . Exploration Rate (%) 49 | 3 23 90 38 44 54 70 47 26 77 15 61 63 70 44 14 82 69 72 45 22 53 59 83 40 16 60 70 60 49 28 19 99 28 59 17 Regions Visited 35 Branch Regions 23 Pre-discovered Areas 12 | . . 3 2 . 1 . . . . . . . 1 . . . . . . . 1 . . . . . 1 3 . . . . . . . Known Exits Taken 25 | . 1 . 1 . . . 1 . . 1 1 1 1 1 1 1 1 1 1 1 1 1 1 1 1 . . . 1 1 1 1 1 1 . Unknown Exits Taken 8 | 1 . 1 . 1 1 1 . . . . . . . . . . . . . . . . . . . 1 1 1 . . . . . . . Scrap Searched 22 | . . 1 . . . . . . . . 5 3 . . . . . . . . 1 4 . . . 2 2 . 4 . . . . . . Spaces Dug 242 | . . 6 13 6 . . . 6 . 1 . . . . 13 . . . . 20 3 1 5 . 10 . . . . 32 11 . 32 34 49 Terrain Destroyed 836 | . . 29 43 6 . 7 18 16 2 1 15 . . 6 24 3 8 . 3 76 11 1 5 2 111 . 14 . 18 34 11 . 34 43 295 Melee 151 | . . . . . . . . . . 1 . . . . 13 . . . . 20 3 1 5 . 10 . . . . 32 11 . 22 7 26 Projectile 158 | . . . . . . . . . 2 . . . . 1 4 3 8 . 3 15 1 . . . 9 . 14 . 3 2 . . 2 36 55 AOE 527 | . . 29 43 6 . 7 18 16 . . 15 . . 5 7 . . . . 41 7 . . 2 92 . . . 15 . . . 10 . 214 Actions | -11 -10 -10 -9 -9 -9 -8 -8 -7 -7 -7 -7 -7 -7 -6 -6 -6 -6 -6 -6 -5 -5 -5 -5 -4 -4 -4 -4 -4 -3 -3 -3 -3 -2 -2 -1 --------- Run | Scr Mat Min Mat Min Exi Min Mat Fac Was Fac Low Low Dat Pro Fac Ext Cet Arc Hub Fac Upp Upp War Pro Fac Upp Upp Zhi Pro Res Arm Lab Res Tes Acc Total 22087 | 54 126 925 603 356 235 300 642 1180 319 565 535 489 85 267 759 1094 288 123 244 1631 1429 431 599 259 821 1927 541 221 318 1205 274 240 705 1171 1126 Wait 4940 | . . 336 102 5 . . 67 77 95 52 7 . . 1 206 146 40 19 32 475 940 7 5 2 79 1513 9 . 11 163 37 1 76 305 132 Move 13860 | 40 114 566 390 307 216 290 426 915 140 420 434 465 83 218 395 707 185 59 138 842 456 389 552 241 606 381 475 178 273 853 203 194 520 625 564 Hop 1 | . . . . . . . . . . . . . . . . . 1 . . . . . . . . . . . . . . . . . . Pick Up 313 | 6 1 2 15 7 16 . 16 22 9 20 7 5 . 6 9 7 8 3 6 29 2 9 7 2 11 4 8 3 2 16 2 10 7 13 23 Fast Attach 176 | 5 1 . 7 . 1 . 7 10 5 7 5 . 1 3 6 9 5 . . 21 . 1 3 . 8 3 6 2 4 16 3 5 13 4 15 Attach 181 | . 1 . . 1 . 1 6 4 7 . 6 1 . 3 15 2 2 . 10 28 1 1 . 2 6 1 7 . 1 5 1 4 2 4 59 Detach 78 | . . . 3 . . . 3 2 5 . 2 . . 1 8 1 1 . . 11 . . 3 . 5 . 3 . 2 5 1 3 . . 19 Swap 327 | . 2 4 10 8 . . 12 26 2 14 10 3 . 4 14 6 10 . . 21 11 4 7 4 23 4 1 1 1 31 3 1 12 45 33 Drop 285 | . 1 2 8 7 2 . 23 23 13 9 6 5 1 9 5 14 14 3 5 3 3 8 3 . 16 5 1 4 5 25 6 13 17 13 13 Fire 1557 | 3 6 15 68 21 . 9 82 101 43 42 43 10 . 22 88 59 22 37 52 155 13 11 12 7 57 16 31 33 17 58 3 . 34 152 235 Melee 201 | . . . . . . . . . . 1 . . . . 13 4 . . . 46 3 1 7 . 10 . . . . 32 15 9 24 10 26 Ram . | . . . . . . . . . . . . . . . . . . . . . . . . . . . . . . . . . . . . Kick . | . . . . . . . . . . . . . . . . . . . . . . . . . . . . . . . . . . . . Crush . | . . . . . . . . . . . . . . . . . . . . . . . . . . . . . . . . . . . . Escape Stasis 10 | . . . . . . . . . . . . . . . . 4 . . . . . . . . . . . . . . . . . . 6 Rewire 152 | . . . . . . . . . . . 15 . . . . 135 . . . . . . . 1 . . . . . . . . . . 1 Trap 2 | . . . . . . . . . . . . . . . . . . . . . . . . . . . . . 2 . . . . . . Miscellaneous 4 | . . . . . . . . . . . . . . . . . . 2 1 . . . . . . . . . . 1 . . . . . Route ------- -11/Scrapyard -10/Materials (discovered 2 exits: *Min x2) -10/Mines (discovered 2 exits: *Mat x2) -9/Materials (discovered 3 exits: *Mat / *Min x2) -9/Mines (discovered 3 exits: *Mat x2 / *Exi) -9/Exiles -8/Mines (discovered 2 exits: *Mat x2) -8/Materials (discovered 2 exits: *Fac x2) -7/Factory (discovered 3 exits: *Fac x2 / *Low) -7/Waste -7/Factory (discovered 2 exits: *Sto / *Low) -7/Lower Caves -7/Lower Caves (discovered 2 exits: *Fac / *Dat) -7/Data Miner -6/Proximity Caves -6/Factory (discovered 6 exits: *Fac x2 / Low x2 / *Ext x2) -6/Extension (discovered 2 exits: *Fac / *Cet) -6/Cetus (discovered 2 exits: *Fac / *Arc) -6/Archives (discovered 2 exits: *Hub x2) -6/Hub_04(d) -5/Factory (discovered 3 exits: *Fac / *Upp x2) -5/Upper Caves -5/Upper Caves -5/Warlord -4/Proximity Caves -4/Factory (discovered 2 exits: *Upp x2) -4/Upper Caves -4/Upper Caves (discovered 2 exits: Res / *Zhi) -4/Zhirov -3/Proximity Caves -3/Research (discovered 4 exits: *Res x3 / *Arm) -3/Armory -3/Lab -2/Research (discovered 2 exits: *Tes x2) -2/Testing -1/Access To Epsilon Eridani History --------- Turn | Location | Event 20 | -11/Scrapyard | Discovered new exit (range 16) 62 | -11/Scrapyard | Entered Materials 108 | -10/Materials | Identified exit to Mines 115 | -10/Materials | Central database locked down 200 | -10/Materials | Entered Mines 202 | -10/Mines | Met a Derelict bent on vengeance 213 | -10/Mines | Learned location of Zion (-6) 283 | -10/Mines | Learned location of Storage (-7) 314 | -10/Mines | Build established: Mutant 403 | -10/Mines | Discovered new exit (range 9) 703 | -10/Mines | Discovered new exit (range 8) 1141 | -10/Mines | Entered Materials 1141 | -9/Materials | Accompanied by 2 allies 1141 | -9/Materials | Evolved 2 slots: Utility x2 1146 | -9/Materials | Led the pair of lost Derelicts to an unsafe place 1537 | -9/Materials | Build established: Hauler-Mutant 1715 | -9/Materials | Identified exit to Mines 1960 | -9/Materials | Discovered new exit (range 16) 2042 | -9/Materials | Entered Mines 2100 | -9/Mines | Learned location of 1 exit from Lower Caves 2107 | -9/Mines | Discovered new exit (range 10) 2192 | -9/Mines | Escorted by a lone wolf Derelict 2283 | -9/Mines | Discovered new exit (range 7) 2501 | -9/Mines | Learned 4 Materials zone layouts 2530 | -9/Mines | Deemed a non-threat by the Exiles lab entrance 2530 | -9/Mines | Discovered new exit (range 5) 2567 | -9/Mines | Received a Rocket Launcher from a helpful Derelict 2632 | -9/Mines | Entered Exiles 2668 | -9/Exiles | Met 8R-AWN 2694 | -9/Exiles | Met EX-HEX 2767 | -9/Exiles | Met EX-DEC 2960 | -9/Exiles | Discovered new exit (range 14) 2981 | -9/Exiles | Entered Mines 3242 | -8/Mines | Discovered new exit (range 10) 3391 | -8/Mines | Discovered new exit (range 3) 3493 | -8/Mines | Entered Materials 3493 | -8/Materials | Evolved 2 slots: Propulsion x1, Utility x1 3494 | -8/Materials | Identified exit to Factory 3752 | -8/Materials | Destroyed 10 combat bots 4357 | -8/Materials | Lost 3 parts (1n1u1w) 4429 | -8/Materials | Garrison activated, responded to threat 4471 | -8/Materials | Discovered exit to Factory (range 10) 4533 | -8/Materials | Entered Factory 4533 | -7/Factory | Evolved 2 slots: Utility x2 4952 | -7/Factory | Discovered new exit (range 15) 4982 | -7/Factory | Identified exit to Factory 5458 | -7/Factory | Discovered new exit (range 10) 5470 | -7/Factory | Identified exit to Lower Caves 5723 | -7/Factory | Discovered exit to Factory (range 12) 6137 | -7/Factory | Garrison activated, responded to threat 6280 | -7/Factory | Sucked down chute 6280 | -7/Factory | Entered Waste 6287 | -7/Waste | Spotted C-40 Crusher 6295 | -7/Waste | EMP discharged 6301 | -7/Waste | Spotted C-40 Crusher 6320 | -7/Waste | 1 allies followed down the chute 6330 | -7/Waste | Crushed by Compactor (0 parts destroyed, 2 dropped) 6331 | -7/Waste | Allies destroyed C-40 Crusher 6370 | -7/Waste | Destroyed C-40 Crusher 6373 | -7/Waste | Spotted C-40 Crusher 6395 | -7/Waste | EMP discharged 6395 | -7/Waste | System corruption reached 10% 6399 | -7/Waste | Destroyed C-40 Crusher 6413 | -7/Waste | Found Damper Plating 6437 | -7/Waste | Spotted C-40 Crusher 6464 | -7/Waste | Destroyed C-40 Crusher 6479 | -7/Waste | Found Damper Plating 6495 | -7/Waste | EMP discharged 6507 | -7/Waste | Destroyed C-40 Crusher 6517 | -7/Waste | Crushed by Compactor (1 part destroyed) 6520 | -7/Waste | Crushed by Compactor (1 part destroyed) 6523 | -7/Waste | Crushed by Compactor (1 part destroyed) 6527 | -7/Waste | Destroyed C-40 Crusher 6554 | -7/Waste | Lost 3 parts (1p2w) 6595 | -7/Waste | EMP discharged 6678 | -7/Waste | Discovered new exit (range 13) 6695 | -7/Waste | EMP discharged 6698 | -7/Waste | Identified exit to Factory 6791 | -7/Waste | Entered Factory 7151 | -7/Factory | Repaired Imp. Propulsion Shielding 7184 | -7/Factory | Discovered new exit (range 7) 7195 | -7/Factory | Identified exit to Storage 7670 | -7/Factory | Discovered exit to Lower Caves (range 7) 7783 | -7/Factory | Entered Lower Caves 7784 | -7/Lower Caves | Identified exit to Lower Caves 7950 | -7/Lower Caves | Spotted B-75 Beast 8057 | -7/Lower Caves | Destroyed B-75 Beast 8174 | -7/Lower Caves | Encountered a Warlord checkpoint 8442 | -7/Lower Caves | Attracted the attention of an 0b10 outpost 8455 | -7/Lower Caves | Core integrity fell below 50% 8497 | -7/Lower Caves | Lost 3 parts (1n1u1w) 8744 | -7/Lower Caves | Entered another Lower Caves area 8765 | -7/Lower Caves | Discovered exit to Factory (range 7) 8772 | -7/Lower Caves | Build established: Scavenger-Mutant 8774 | -7/Lower Caves | Attracted the attention of an 0b10 checkpoint 9315 | -7/Lower Caves | Learned Factory terminal intel 9337 | -7/Lower Caves | Learned Factory garrison access intel 9409 | -7/Lower Caves | Learned location of 1 exit from Factory 9409 | -7/Lower Caves | Learned Factory stockpile data 9409 | -7/Lower Caves | Learned Research terminal intel 9409 | -7/Lower Caves | Learned Extension terminal intel 9409 | -7/Lower Caves | Learned Armory terminal intel 9545 | -7/Lower Caves | Discovered new exit (range 14) 9570 | -7/Lower Caves | Identified exit to Data Miner 9615 | -7/Lower Caves | Entered Data Miner 9615 | -7/Data Miner | Discovered new exit (range 6) 9623 | -7/Data Miner | Identified exit to Proximity Caves 9650 | -7/Data Miner | Met Data Miner 9688 | -7/Data Miner | Learned location of Section 7 (-2) 9688 | -7/Data Miner | Acquired the access code to Warlord's prototype stash 9720 | -7/Data Miner | Received God Mode back door access code from Data Miner 9767 | -7/Data Miner | Entered Proximity Caves 9798 | -6/Proximity Caves | Spotted B-75 Beast 9800 | -6/Proximity Caves | Escorted by Enhanced Grunt 9821 | -6/Proximity Caves | Allies destroyed B-75 Beast 10142 | -6/Proximity Caves | Attracted the attention of an 0b10 checkpoint 10152 | -6/Proximity Caves | Discovered exit to Factory (range 15) 10201 | -6/Proximity Caves | Destroyed 8 combat bots 10203 | -6/Proximity Caves | Found Prototype Device 10203 | -6/Proximity Caves | Identified Exp. Thermal Shield 10237 | -6/Proximity Caves | Entered Factory 10237 | -6/Factory | Evolved 2 slots: Propulsion x1, Utility x1 10238 | -6/Factory | Identified exit to Factory 10240 | -6/Factory | Loaded intel: 22 terminal locations 10241 | -6/Factory | Loaded intel: 4 garrison access locations 10441 | -6/Factory | Identified exit to Lower Caves 10441 | -6/Factory | Identified exit to Extension 10548 | -6/Factory | Destroyed 8 combat bots 10548 | -6/Factory | Lost 3 parts (1n1u1w) 10620 | -6/Factory | Discovered exit to Factory (range 15) 11102 | -6/Factory | Incoming investigation squad redirected 11148 | -6/Factory | Fabricated Hvy. Treads? 11183 | -6/Factory | Garrison activated, responded to threat 11185 | -6/Factory | Incoming investigation squad redirected 11219 | -6/Factory | Lost 4 parts (2n2u) 11304 | -6/Factory | Crushed by falling debris 11382 | -6/Factory | Build established: Hauler-Mutant 11433 | -6/Factory | Entered Extension 11434 | -6/Extension | Loaded intel: 13 terminal locations 11509 | -6/Extension | Rescued a captive Derelict 11510 | -6/Extension | Rescued a captive Derelict 11710 | -6/Extension | Rescued a captive Derelict 11711 | -6/Extension | Rescued a captive Derelict 11791 | -6/Extension | Rescued A7 12347 | -6/Extension | Spotted B-75 Beast 12357 | -6/Extension | Destroyed B-75 Beast 12380 | -6/Extension | Spotted B-75 Beast 12420 | -6/Extension | Destroyed B-75 Beast 12436 | -6/Extension | Extracted ID and sensor layout for unrecognized location from A7's data core 12628 | -6/Extension | Rescued a captive Derelict 12665 | -6/Extension | Rescued a captive Derelict 12666 | -6/Extension | Rescued a captive Derelict 12836 | -6/Extension | Build established: Commander-Mutant 12894 | -6/Extension | Discovered exit to Factory (range 10) 12896 | -6/Extension | Discovered new exit (range 6) 12906 | -6/Extension | Identified exit to Cetus 13033 | -6/Extension | Disrupted transfer network 13117 | -6/Extension | Entered Cetus 13117 | -6/Cetus | Accompanied by 15 allies 13140 | -6/Cetus | Spotted Cetus Guard 13140 | -6/Cetus | Spotted Cetus Guard 13142 | -6/Cetus | Spotted Cetus Guard 13155 | -6/Cetus | Allies destroyed Cetus Guard 13156 | -6/Cetus | Spotted Cetus Guard 13157 | -6/Cetus | Allies destroyed Cetus Guard 13159 | -6/Cetus | Allies destroyed Cetus Guard 13174 | -6/Cetus | Allies destroyed Cetus Guard 13315 | -6/Cetus | Discovered new exit (range 15) 13353 | -6/Cetus | Spotted Cetus Guard 13353 | -6/Cetus | Spotted Cetus Guard 13359 | -6/Cetus | Spotted Cetus Guard 13366 | -6/Cetus | Destroyed Cetus Guard 13367 | -6/Cetus | Spotted Cetus Guard 13368 | -6/Cetus | Destroyed Cetus Guard 13370 | -6/Cetus | Destroyed Cetus Guard 13397 | -6/Cetus | Destroyed Cetus Guard 13416 | -6/Cetus | Discovered exit to Factory (range 15) 13432 | -6/Cetus | Met Revision 17 13553 | -6/Cetus | Identified exit to Archives 13555 | -6/Cetus | Entered Archives 13555 | -6/Archives | Accompanied by 2 allies 13712 | -6/Archives | Build established: Scavenger-Mutant 13753 | -6/Archives | Discovered new exit (range 17) 13758 | -6/Archives | Discovered new exit (range 18) 13785 | -6/Archives | Identified exit to Hub_04(d) 13786 | -6/Archives | Entered Hub_04(d) 13786 | -6/Hub_04(d) | Accompanied by 4 allies 13972 | -6/Hub_04(d) | Discovered exit to Factory (range 21) 14036 | -6/Hub_04(d) | Network Hub disabled 14036 | -6/Hub_04(d) | Network Hub disabled 14036 | -6/Hub_04(d) | Network Hub disabled 14047 | -6/Hub_04(d) | Spotted Lightning 14047 | -6/Hub_04(d) | Spotted Lightning 14047 | -6/Hub_04(d) | Spotted Lightning 14049 | -6/Hub_04(d) | Destroyed Lightning 14054 | -6/Hub_04(d) | Incoming investigation squad redirected 14076 | -6/Hub_04(d) | Garrison activated, responded to threat 14094 | -6/Hub_04(d) | Network Hub disabled 14094 | -6/Hub_04(d) | Network Hub disabled 14142 | -6/Hub_04(d) | Core integrity fell below 50% 14181 | -6/Hub_04(d) | Destroyed Lightning 14185 | -6/Hub_04(d) | Found Prototype Energy Cannon 14187 | -6/Hub_04(d) | Lost 4 parts (1n2u1w) 14215 | -6/Hub_04(d) | Entered Factory 14215 | -5/Factory | Evolved 2 slots: Power x1, Utility x1 14219 | -5/Factory | Identified EMDS 14239 | -5/Factory | Lost 5 parts (1p1n2u1w) 14292 | -5/Factory | Incoming assault squad redirected 14550 | -5/Factory | Identified exit to Upper Caves 14815 | -5/Factory | First assault squad dispatched 14868 | -5/Factory | Fabricated Centrium Heavy Treads? 14912 | -5/Factory | Incoming assault squad redirected 14977 | -5/Factory | System corruption reached 10% 15010 | -5/Factory | Lost 4 parts (1n1u2w) 15330 | -5/Factory | Destroyed 7 combat bots 15388 | -5/Factory | Lost 4 parts (1p1n2w) 15540 | -5/Factory | Fabricated Centrium Heavy Treads (x1) 15606 | -5/Factory | Incoming assault squad redirected 15646 | -5/Factory | Lost 3 parts (1p1u1w) 15743 | -5/Factory | Incoming assault squad redirected 15780 | -5/Factory | Repaired Centrium Heavy Treads? 15793 | -5/Factory | Fabricated Bore Cannon (x1) 15850 | -5/Factory | Fabricated Bore Cannon (x1) 15875 | -5/Factory | Lost 3 parts (2u1w) 15925 | -5/Factory | Repaired Imp. Medium Armor Plating 15952 | -5/Factory | Repaired Hcp. Storage Unit 15980 | -5/Factory | Repaired Hcp. Storage Unit 16037 | -5/Factory | Incoming assault squad redirected 16197 | -5/Factory | Local fabrication network quarantined 16260 | -5/Factory | Discovered new exit (range 9) 16487 | -5/Factory | High security lockdown imminent 16567 | -5/Factory | High security lockdown engaged 16737 | -5/Factory | Entered Upper Caves 16834 | -5/Upper Caves | Learned location of Armory (-3) 16843 | -5/Upper Caves | Learned Factory emergency access door positions 18317 | -5/Upper Caves | Discovered new exit (range 7) 18325 | -5/Upper Caves | Identified exit to Upper Caves 18467 | -5/Upper Caves | Entered another Upper Caves area 18689 | -5/Upper Caves | Core integrity fell below 50% 18716 | -5/Upper Caves | Destroyed 8 combat bots 18878 | -5/Upper Caves | Learned 4 Factory zone layouts 19068 | -5/Upper Caves | Discovered new exit (range 8) 19094 | -5/Upper Caves | Identified exit to Warlord 19144 | -5/Upper Caves | Entered Warlord 19482 | -5/Warlord | Visited the Vortex Lab 19484 | -5/Warlord | Warlord's base attacked by MAIN.C 19495 | -5/Warlord | Found Prototype Energy Cannon 19498 | -5/Warlord | Found Prototype Energy Cannon 19500 | -5/Warlord | Found Prototype Energy Cannon 19503 | -5/Warlord | Found Prototype Energy Cannon 19653 | -5/Warlord | Met Warlord 19669 | -5/Warlord | Opened Warlord's prototype stash 19677 | -5/Warlord | Found Prototype Reactor 19681 | -5/Warlord | Found Prototype Device 19682 | -5/Warlord | Identified Exp. Cloaking Device 19690 | -5/Warlord | Found Prototype Hackware 19690 | -5/Warlord | Identified Ghost Barrier 19695 | -5/Warlord | Found Prototype Processor 19695 | -5/Warlord | Identified Exp. Target Analyzer 19699 | -5/Warlord | Found Prototype Device 19699 | -5/Warlord | Identified Exp. Focal Shield 19834 | -5/Warlord | Warlord forces counterattacked 19972 | -5/Warlord | Build established: Hacker-Mutant 20050 | -5/Warlord | Opened side exit 20073 | -5/Warlord | Discovered new exit (range 14) 20093 | -5/Warlord | Identified exit to Proximity Caves 20095 | -5/Warlord | Entered Proximity Caves 20109 | -4/Proximity Caves | Identified Vortex Driver (x4) 20449 | -4/Proximity Caves | Learned Research emergency access door positions 20472 | -4/Proximity Caves | Discovered new exit (range 8) 20481 | -4/Proximity Caves | Identified exit to Factory 20509 | -4/Proximity Caves | Entered Factory 20509 | -4/Factory | Accompanied by 1 ally 20509 | -4/Factory | Evolved 2 slots: Propulsion x1, Utility x1 20625 | -4/Factory | Fabricated Centrium Heavy Treads (x1) 20661 | -4/Factory | Found Prototype Slashing Weapon 20661 | -4/Factory | Identified Molecular Scythe 20665 | -4/Factory | Found Molecular Scythe 20667 | -4/Factory | Found Molecular Scythe 20703 | -4/Factory | Repaired Centrium Heavy Treads? 20736 | -4/Factory | Fabricated Centrium Heavy Treads? 20839 | -4/Factory | Repaired Centrium Heavy Treads? 20860 | -4/Factory | Fabricated Centrium Medium Armor Plating? 21068 | -4/Factory | Fabricated Centrium Medium Armor Plating? 21410 | -4/Factory | Local fabrication network quarantined 21509 | -4/Factory | First assault squad dispatched 21530 | -4/Factory | Incoming assault squad redirected 21530 | -4/Factory | Identified exit to Upper Caves 21539 | -4/Factory | System corruption reached 10% 21787 | -4/Factory | Incoming assault squad redirected 21813 | -4/Factory | Entered Upper Caves 23454 | -4/Upper Caves | Build established: Scavenger-Mutant 23573 | -4/Upper Caves | Learned Research terminal intel 23723 | -4/Upper Caves | Learned Extension trap positions 23967 | -4/Upper Caves | Discovered new exit (range 3) 23997 | -4/Upper Caves | Entered another Upper Caves area 24046 | -4/Upper Caves | Build established: Hacker-Mutant 24231 | -4/Upper Caves | Lost 8 parts (3n4u1w) 24264 | -4/Upper Caves | Learned Armory stockpile data 24264 | -4/Upper Caves | Learned Armory garrison access intel 24294 | -4/Upper Caves | Identified exit to Research 24639 | -4/Upper Caves | Discovered new exit (range 17) 24891 | -4/Upper Caves | Entered Zhirov 24891 | -4/Zhirov | Discovered new exit (range 3) 24921 | -4/Zhirov | Met Zhirov 24957 | -4/Zhirov | Learned location of Quarantine (-3) 24957 | -4/Zhirov | Learned location of Testing (-2) 24957 | -4/Zhirov | Learned location of Command (-1) 24966 | -4/Zhirov | Zhirov requested help retrieving the SGEMP Prototype 24995 | -4/Zhirov | Found Alien Artifact 24995 | -4/Zhirov | Identified Integrated Reactor 24995 | -4/Zhirov | Installed Integrated Reactor, increased core energy generation (+2%) 25078 | -4/Zhirov | Found Alien Artifact 25257 | -4/Zhirov | Entered Proximity Caves 25732 | -3/Proximity Caves | Discovered exit to Research (range 5) 25777 | -3/Proximity Caves | Entered Research 25777 | -3/Research | Evolved 2 slots: Utility x1, Weapon x1 25779 | -3/Research | Loaded intel: 16 terminal locations 25977 | -3/Research | Revision forces began assault on 0b10 26029 | -3/Research | Fabricated Exp. Sensor Array (x1) 26032 | -3/Research | Met up with Revision 17++ 26074 | -3/Research | Local fabrication network quarantined 26088 | -3/Research | Found Gamma Bomb Array 26195 | -3/Research | Repaired Arm. Medium Treads 26250 | -3/Research | Identified exit to Research 26410 | -3/Research | Build established: Hacker-Assassin 26477 | -3/Research | Research terminal network offline 26857 | -3/Research | Spotted Striker 26863 | -3/Research | Destroyed Striker 26865 | -3/Research | Spotted Executioner 26869 | -3/Research | Spotted Striker 26879 | -3/Research | Destroyed Striker 26924 | -3/Research | Destroyed 15 combat bots 26932 | -3/Research | Destroyed Executioner 27013 | -3/Research | Spotted Striker 27019 | -3/Research | Spotted Executioner 27024 | -3/Research | Destroyed Striker 27029 | -3/Research | Destroyed Executioner 27488 | -3/Research | Spotted Executioner 27490 | -3/Research | Spotted Striker 27491 | -3/Research | Destroyed Striker 27526 | -3/Research | Destroyed Executioner 27698 | -3/Research | Spotted Striker 27708 | -3/Research | Destroyed Striker 27736 | -3/Research | Discovered new exit (range 5) 27743 | -3/Research | Identified exit to Armory 27773 | -3/Research | Entered Armory 27775 | -3/Armory | Loaded intel: 8 terminal locations 27892 | -3/Armory | Build established: Hauler-Assassin 27953 | -3/Armory | Spotted B-86 Titan 28116 | -3/Armory | Identified Transdimensional Reconstructor 28116 | -3/Armory | Warped through subspace to slip node 28116 | -3/Armory | Discovered new exit (range 1) 28116 | -3/Armory | Identified exit to Lab 28232 | -3/Armory | Entered Lab 28232 | -3/Lab | Discovered exit to Research (range 9) 28252 | -3/Lab | Hidden lab's door opened automatically 28252 | -3/Lab | Sensor layout match revealed 28253 | -3/Lab | Gained access to the hidden lab's interior 28255 | -3/Lab | Unable to decrypt terminal 28318 | -3/Lab | Found Prototype Special Weapon 28327 | -3/Lab | Identified Gui. Remote Datajack 28350 | -3/Lab | Found Prototype Energy Gun 28350 | -3/Lab | Identified Tachyon Dispersion Ray 28356 | -3/Lab | Found Prototype Energy Cannon 28356 | -3/Lab | Identified Potential Cannon 28367 | -3/Lab | Found Prototype Protection 28368 | -3/Lab | Identified Exp. Powered Armor 28374 | -3/Lab | Found Prototype Hackware 28374 | -3/Lab | Identified Quantum Router 28446 | -3/Lab | Found Alien Artifact 28446 | -3/Lab | Identified Core Expander 28446 | -3/Lab | Installed Core Expander, added new Power slot 28463 | -3/Lab | Found Alien Artifact 28474 | -3/Lab | Found Transdimensional Reconstructor 28597 | -3/Lab | Found Alien Artifact 28614 | -3/Lab | Unable to decrypt terminal 28623 | -3/Lab | Entered Research 28623 | -2/Research | Warlord forces began assault on 0b10 28623 | -2/Research | Evolved 2 slots: Propulsion x1, Utility x1 28624 | -2/Research | Identified exit to Testing 28625 | -2/Research | Loaded intel: 19 terminal locations 28733 | -2/Research | Research machine network offline 28741 | -2/Research | Build established: Generator-Assassin 28984 | -2/Research | Borebot progress halted 29115 | -2/Research | Borebot progress halted 29119 | -2/Research | Borebot progress halted 29352 | -2/Research | Met up with Warlord 29426 | -2/Research | Borebot progress halted 29537 | -2/Research | Spotted Striker 29540 | -2/Research | Spotted Striker 29546 | -2/Research | Destroyed Striker 29560 | -2/Research | Destroyed Striker 29560 | -2/Research | Spotted Striker 29579 | -2/Research | Destroyed Striker 29594 | -2/Research | Spotted Striker 29610 | -2/Research | Destroyed Striker 29660 | -2/Research | Destroyed 9 combat bots 29676 | -2/Research | Spotted Executioner 29677 | -2/Research | Spotted Executioner 29689 | -2/Research | Destroyed Executioner 29691 | -2/Research | Destroyed Executioner 29785 | -2/Research | Entered Testing 29886 | -2/Testing | Fabricated Exp. Signal Interpreter (x1) 29961 | -2/Testing | Adv. Hacking Suite fried by hacking feedback 29980 | -2/Testing | Incoming assault squad redirected 29984 | -2/Testing | Repaired Gamma Bomb Array? 30079 | -2/Testing | Incoming assault squad redirected 30158 | -2/Testing | Identified Integrated Dissipator 30158 | -2/Testing | Identified Core Reset Matrix 30266 | -2/Testing | Repaired Rnf. Antimatter Reactor 30284 | -2/Testing | Local fabrication network quarantined 30285 | -2/Testing | First assault squad dispatched 30551 | -2/Testing | Incoming assault squad redirected 30722 | -2/Testing | Discovered new exit (range 20) 31117 | -2/Testing | Destroyed 10 combat bots 31484 | -2/Testing | Incoming assault squad redirected 31532 | -2/Testing | Found Prototype Energy Cannon 31558 | -2/Testing | Incoming assault squad redirected 31616 | -2/Testing | Identified exit to Access 31618 | -2/Testing | Entered Access 31618 | -1/Access | Evolved 2 slots: Utility x2 31621 | -1/Access | Installed Integrated Dissipator, increased core heat dissipation (+2%) 31804 | -1/Access | Identified Hpw. Disruptor Cannon 31804 | -1/Access | Identified Vortex Chain Reactor 31868 | -1/Access | First assault squad dispatched 31991 | -1/Access | Build established: Hauler-Assassin 32114 | -1/Access | Destroyed 7 combat bots 32140 | -1/Access | Incoming assault squad redirected 32261 | -1/Access | Spotted B-99 Colossus 32324 | -1/Access | Lost 5 parts (1p4u) 32606 | -1/Access | System corruption reached 10% 32608 | -1/Access | P-80 Master assimilated allied Archangel 10a 32641 | -1/Access | Incoming assault squad redirected 32687 | -1/Access | Destroyed 18 combat bots 32719 | -1/Access | Lost 6 parts (3n2u1w) 32769 | -1/Access | Incoming investigation squad redirected 32798 | -1/Access | Found Prototype Launcher 32798 | -1/Access | Identified Tactical Quantum Warhead 32852 | -1/Access | Lost 6 parts (2p1u3w) 32871 | -1/Access | Discovered new exit (range 5) 32872 | -1/Access | Spotted B-99 Colossus 32889 | -1/Access | Incoming assault squad redirected 32891 | -1/Access | Rewired B-99 Colossus 32900 | -1/Access | Spotted B-99 Colossus 32903 | -1/Access | Lost 3 parts (3w) 32906 | -1/Access | Allies destroyed B-99 Colossus 33126 | -1/Access | High security lockdown imminent 33184 | -1/Access | Identified exit to Surface 33206 | -1/Access | High security lockdown engaged 33284 | -1/Access | Destroyed 14 combat bots 33366 | -1/Access | Lost 3 parts (1n1u1w) 33375 | -1/Access | Destroyed 17 combat bots 33463 | -1/Access | Spotted Investigator 33464 | -1/Access | Scanned by Researcher 33478 | -1/Access | System corruption reached 30% 33485 | -1/Access | Destroyed Investigator 33500 | -1/Access | Core integrity fell below 50% 33515 | -1/Access | Released all parts (6) 33515 | *** | Escaped! Last Messages --------------- 33510_ System corrupted: Hvy. Gauss Cannon targeting data glitched. 33510_ Slug penetrates Reinforced Barrier. 33510_ K-01 Serf collects debris. 33513_ Hvy. Gauss Cannon destroyed. 33513_ Adv. Thermal Shield destroyed. 33514_ Arm. Heavy Treads destroyed. 33514_ K-01 Serf collects debris. 33515_ Enh. Nova Cannon destroyed. 33515_ K-01 Serf collects debris. 33515_ C-30 ARC bursts open, deploying its payload. 33515_ G-73 Enforcer unfolds itself. 33515_ L-61 Swordsman unfolds itself. 33515_ G-73 Enforcer unfolds itself. 33515_ M-36 Artificer unfolds itself. 33515_ K-01 Serf collects debris. 33515_ Released Hcp. Storage Unit. 33515_ Released Lrg. Storage Unit. 33515_ Released Hcp. Storage Unit. 33515_ Released Rnf. Antimatter Reactor. 33515_ Released Hcp. Matter Pod. Map ----- +----------------------------------------------------+ | ???????????????###??????# # """ #?? ??""? | | ???????????????# ?????# # ""T"" #??? ??"?? | | ???????????????# "????# # "" "" #???##+?????? | | ??????????% ?# """???# # #???????????? | | ?????????? ?# " ???# # #???????????? | | ?????????? ?# ??# !# = #???????????? | | ?????????? [% ?# | #!%" = = #???????????? | | ???? ????? % ?# +[=+= = = #???????????? | | ???? ???? ?# #%]###########???????????? | | ???? ???? ?# ????? #!]]]#???????????????????? | | ???? " "###########*[############??????????? | | ???"" /!! ! "??????? | | ???" ??#%! T??????? | | ????? ?#!*###########################?????????? | | ?????? ?# #????????# #????????????????????????? | | ??????? # #????????# #????????????????????????? | | ???????? #% #???##???#%#????????????????????????? | | ????????###= %#### ########??????????????????????? | | ????????#=# %!% #;;" % ???????????????????????? | | ??????? #[=%%[*#%;; ## #######################??? | | ??????? " #!!%%ggm = !%! " ##?? | | ?????????##!%Cklg i !%= % #?? | | ?????????## !!= %% %% *g=p ### | | ?????????##= % % = g!gm/=k! % | | ??]] #! % %%*g=%%l%==% % % | | ]]] # *%k!!g@!!/! " | | ]]] # % m=g%igl%==*%"" | | ?? # % % g !]%g!%! """ ###+##### | | ? %# % !g!!k ""?" #???????? | | ?""""" #t*%* % % "?" #???????? | | ????"" # ! % ###;#######?#########???????? | | ????"" # ; # ;;#?# ????????????????????????? | | ????"" #% ;! ???##????????????????????????? | | ????"" %# ##?????????????????????????????? | | ???? %" ##???????????????????????????????? | | ???? ? % # #?????????????????????????????????? | | ????###+??# ##??????????????????????????????????? | | ?????????? ????????????????????????????????????? | | ?????????? ????????????????????????????????????? | | ?????????####????????????????????????????????????? | | ?????????????????????????????????????????????????? | | ?????????????????????????????????????????????????? | | ?????????????????????????????????????????????????? | | ?????????????????????????????????????????????????? | | ?????????????????????????????????????????????????? | | ?????????????????????????????????????????????????? | | ?????????????????????????????????????????????????? | | ?????????????????????????????????????????????????? | | ?????????????????????????????????????????????????? | | ?????????????????????????????????????????????????? | +----------------------------------------------------+ Best States ------------- Heat Dissipation 117 Coolant Potential 50 Energy Generation 81 Energy Capacity 925 Matter Stores 413 Matter Capacity 500 Sight Range 20 Robot Scan Range 30 Terrain Scan Density 10 Jamming Range 16 Cloak Strength 4 Additional Mass Support 16 EM Shielding 2 Armor Coverage 2400 Resistance: KI 30 Resistance: TH 30 Resistance: EM 90 Core Shielding 30 Propulsion Shielding 66 Weapon Shielding 66 Phase Shifting 15 Evasion (%) 55 Targeting Accuracy 8 Target Analysis 8 Core Analysis 10 Armor Integrity Analysis 66 Recoil Reduction 6 Matter Filtering 50 Particle Charging 25 Kinecelleration 40 Offensive Hacking 24 Defensive Hacking 25 Item Schematics ----------------- Hcp. Storage Unit | -10/Materials | Hacked Beamcaster | -9/Materials | Scanalyzed Hvy. Treads | -7/Factory | Scanalyzed Hvy. Armor Plating | -7/Factory | Scanalyzed Antimatter Reactor | -7/Factory | Scanalyzed Proton Cannon | -7/Factory | Hacked Hrd. Heavy Armor Plating | -7/Factory | Hacked Combat Drone Bay | -7/Data Miner | Free Lgt. Regenerative Plating | -7/Data Miner | Free Triangulator | -7/Data Miner | Free Exp. Terrain Scanner | -7/Data Miner | Free Tactical Coordination Suite | -7/Data Miner | Free Centrium Heavy Treads | -5/Factory | Scanalyzed Bore Cannon | -5/Factory | Scanalyzed Imp. KE Penetrator | -5/Factory | Scanalyzed Centrium Medium Armor Plating | -5/Factory | Scanalyzed Exp. Sensor Array | -4/Upper Caves | Hacked Assault Drone Bay | -4/Zhirov | Free Exp. Heat Sink | -4/Zhirov | Free Exp. Optical Array | -4/Zhirov | Free Imp. Arc Thrower | -4/Zhirov | Free Exp. Signal Interpreter | -3/Proximity Caves | Hacked Robot Schematics ------------------ S-27 Virus | -7/Data Miner | Free G-50 Soldier | -7/Data Miner | Free G-67 Veteran | -7/Data Miner | Free P-70 Sage | -7/Data Miner | Free I-36 Angel | -7/Data Miner | Free I-47 Archangel | -7/Data Miner | Free Fabricated ------------ Hvy. Treads | x2 | -6/Factory Centrium Heavy Treads | x1 | -5/Factory Centrium Heavy Treads | x1 | -5/Factory Bore Cannon | x1 | -5/Factory Bore Cannon | x1 | -5/Factory Centrium Heavy Treads | x1 | -4/Factory Centrium Heavy Treads | x1 | -4/Factory Centrium Medium Armor Plating | x1 | -4/Factory Centrium Medium Armor Plating | x1 | -4/Factory Exp. Sensor Array | x1 | -3/Research Exp. Signal Interpreter | x1 | -2/Testing Alien Tech Used ----------------- Integrated Reactor Transdimensional Reconstructor Core Expander Integrated Dissipator Achievements -------------- None Challenges ------------ None Game ------ Seed ChargeWeldingRegenerator Manual? 0 Play Time 05:26:57 Cumulative 400.9 hours Start 2019.11.10 @ 18:13:59 End 2019.11.15 @ 01:22:53 Sessions 13 Manual Loads 0 Difficulty Rogue Special Mode None Game No. 309 Rogue 305 Adventurer 4 Explorer 0 Win Type 0 Total 31 Types 25/2/1/1/2/0/0 Lore% 92 Gallery% 93 Achievement% 87 Wizard Run 0 Options --------- ASCII 0 Keyboard 1 Movement Vi Keybinds 0 Fullscreen 0 Font 16/Terminus Map View 76x50 Tactical HUD 1 Map Filters NONE Filters NONE Steam 1 RUN: 8baa6c44-47a1-46e6-8dbf-4d5f445a4846